Workbook

Sheet овз 7-11
A1: Согласовано | O1: Утверждено
O2: ООО "КРЕПЫШ"
O3: _______________________Ефремов В.Ю.
A6: Меню для организации питания детей с ОВЗ в возрасте от 7 до 11 лет в образовательных учреждениях Мензелинского района РТ на 1 полугодие 2022-2023 учебный год.
A8: 1 день, 1 неделя
A9: № рецептуры | B9: Прием пищи, наименование блюда | C9: Масса | D9: Пищевые вещества | G9: Энергетическая ценность | H9: Витамины | M9: Минеральные вещества
D10: Белки | E10: Жиры | F10: Углеводы | H10: B1 | I10: B2 | J10: A | K10: D | L10: C | M10: Na | N10: K | O10: Ca | P10: Mg | Q10: P | R10: Fe | S10: I | T10: Se | U10: F
C11: г | D11: г | E11: г | F11: г | G11: ккал | H11: мг | I11: мг | J11: мкг рет.экв | K11: мкг | L11: мг | M11: мг | N11: мг | O11: мг | P11: мг | Q11: мг | R11: мг | S11: мкг | T11: мкг | U11: мкг
B12: Понедельник, 1 неделя
B13: Буфет | C13: 7-11
A14: 54-3гн-2020 | B14: Чай с лимоном и сахаром | C14: 155 | D14: 0.2 | E14: 0 | F14: 5 | G14: 20.9 | H14: 0 | I14: 0.01 | J14: 0.29 | K14: 0 | L14: 0.87 | M14: 0.95 | N14: 22.67 | O14: 50.25 | P14: 3.42 | Q14: 6.39 | R14: 0.58 | S14: 0.01 | T14: 0.02 | U14: 0.53
A15: Пром. | B15: Сушка простая | C15: 10 | D15: 1.09 | E15: 0.13 | F15: 6.88 | G15: 33.1 | H15: 0.02 | I15: 0.01 | J15: 0 | K15: 0 | L15: 0 | M15: 46 | N15: 15 | O15: 3 | P15: 4 | Q15: 11 | R15: 0.3 | S15: 0 | T15: 0 | U15: 0
B16: Итого за буфет | C16: 175 | D16: 2.4 | E16: 0.3 | F16: 18.8 | G16: 87 | H16: 0.05 | I16: 0.02 | J16: 0.29 | K16: 0 | L16: 0.87 | M16: 121.95 | N16: 59.67 | O16: 56.25 | P16: 12.62 | Q16: 30.59 | R16: 1.16 | S16: 0.01 | T16: 0.02 | U16: 0.53
B17: Горячий завтрак | C17: 7-11
A18: 54-11з-2020 | B18: Салат из моркови с яблоками с растительным маслом | C18: 60 | D18: 0.5 | E18: 6.1 | F18: 4.3 | G18: 74.3 | H18: 0.03 | I18: 0.03 | J18: 732.9 | K18: 0 | L18: 3.63 | M18: 89.79 | N18: 123.26 | O18: 13.5 | P18: 15.57 | Q18: 22.38 | R18: 0.66 | S18: 10.19 | T18: 0.09 | U18: 21.57
A19: 54-4г-2020 | B19: Каша гречневая рассыпчатая | C19: 150 | D19: 8.2 | E19: 6.3 | F19: 35.9 | G19: 233.7 | H19: 0.21 | I19: 0.12 | J19: 19.19 | K19: 0.09 | L19: 0 | M19: 149.45 | N19: 219.36 | O19: 46.62 | P19: 120.16 | Q19: 180.99 | R19: 4.05 | S19: 22.28 | T19: 3.52 | U19: 16.06
A20: ном.рец №174 | B20: Тефтели мясные из говядины, полуфабрикат в соусе | C20: 75/30 | D20: 10.81 | E20: 10.4 | F20: 8.42 | G20: 168.9 | H20: 0 | I20: 0 | J20: 38.45 | K20: 0.01 | L20: 1.79 | M20: 3 | N20: 43 | O20: 45.75 | P20: 35.13 | Q20: 109 | R20: 1.6 | S20: 0 | T20: 0 | U20: 0
A21: 54-4гн-2020 | B21: Чай с молоком и сахаром | C21: 200 | D21: 1.6 | E21: 1.1 | F21: 8.6 | G21: 50.9 | H21: 0.01 | I21: 0.07 | J21: 6.9 | K21: 0 | L21: 0.3 | M21: 19.68 | N21: 81.35 | O21: 103.48 | P21: 9.92 | Q21: 46.33 | R21: 0.78 | S21: 4.5 | T21: 0.88 | U21: 10
A22: Пром. | B22: Хлеб пшеничный | C22: 30 | D22: 2.3 | E22: 0.2 | F22: 14.8 | G22: 70.3 | H22: 0.03 | I22: 0.01 | J22: 0 | K22: 0 | L22: 0 | M22: 149.7 | N22: 27.9 | O22: 6 | P22: 4.2 | Q22: 19.5 | R22: 0.33 | S22: 0.96 | T22: 1.8 | U22: 4.35
A23: Пром. | B23: Хлеб ржаной | C23: 20 | D23: 1.3 | E23: 0.2 | F23: 6.7 | G23: 34.2 | H23: 0.04 | I23: 0.02 | J23: 0 | K23: 0 | L23: 0 | M23: 122 | N23: 49 | O23: 7 | P23: 9.4 | Q23: 31.6 | R23: 0.78 | S23: 0 | T23: 6.18 | U23: 0
B24: Итого за Завтрак | C24: 565 | D24: =SUM(D18:D23) -> 24.71 | E24: 24.3 | F24: 78.72 | G24: 632.3 | H24: 0.32 | I24: 0.25 | J24: 797.44 | K24: 0.1 | L24: 5.72 | M24: 533.62 | N24: 543.87 | O24: 222.35 | P24: 194.38 | Q24: 409.8 | R24: 8.2 | S24: 37.93 | T24: 12.47 | U24: 51.98
B25: Итого за день | C25: =C24+C16 -> 740 | D25: 27.11 | E25: 24.6 | F25: 97.52 | G25: 719.3 | H25: 0.37 | I25: 0.27 | J25: 797.73 | K25: 0.1 | L25: 6.59 | M25: 655.57 | N25: 603.54 | O25: 278.6 | P25: 207 | Q25: 440.39 | R25: 9.36 | S25: 37.94 | T25: 12.49 | U25: 52.51
A27: 2 день, 1 неделя
A28: № рецептуры | B28: Прием пищи, наименование блюда | C28: Масса | D28: Пищевые вещества | G28: Энергетическая ценность | H28: Витамины | M28: Минеральные вещества
D29: Белки | E29: Жиры | F29: Углеводы | H29: B1 | I29: B2 | J29: A | K29: D | L29: C | M29: Na | N29: K | O29: Ca | P29: Mg | Q29: P | R29: Fe | S29: I | T29: Se | U29: F
C30: г | D30: г | E30: г | F30: г | G30: ккал | H30: мг | I30: мг | J30: мкг рет.экв | K30: мкг | L30: мг | M30: мг | N30: мг | O30: мг | P30: мг | Q30: мг | R30: мг | S30: мкг | T30: мкг | U30: мкг
B31: Вторник, 1 неделя
B32: Буфет | C32: 7-11
A33: 54-13к-2020 | B33: Каша вязкая молочная пшеничная | C33: 150 | D33: 6.1 | E33: 6.9 | F33: 29 | G33: 202.7 | H33: 0.1 | I33: 0.13 | J33: 30.74 | K33: 0.1 | L33: 0.41 | M33: 256.57 | N33: 169.91 | O33: 113.68 | P33: 29.4 | Q33: 154.74 | R33: 1.64 | S33: 37.16 | T33: 24.8 | U33: 16.11
A34: 54-1гн-2020 | B34: Чай без сахара | C34: 150 | D34: 0.1 | E34: 0 | F34: 0 | G34: 1.1 | H34: 0 | I34: 0.01 | J34: 0.23 | K34: 0 | L34: 0.03 | M34: 0.47 | N34: 15.44 | O34: 49.47 | P34: 2.87 | Q34: 5.38 | R34: 0.54 | S34: 0 | T34: 0 | U34: 0
B35: Итого за буфет | C35: 300 | D35: 6.2 | E35: 6.9 | F35: 29 | G35: 203.8 | H35: 0.1 | I35: 0.14 | J35: 30.97 | K35: 0.1 | L35: 0.44 | M35: 257.04 | N35: 185.35 | O35: 163.15 | P35: 32.27 | Q35: 160.12 | R35: 2.18 | S35: 37.16 | T35: 24.8 | U35: 16.11
B36: Горячий завтрак | C36: 7-11
A37: 54-7з-2020 | B37: Салат из белокочанной капусты с растительным маслом | C37: 60 | D37: 1.5 | E37: 6.1 | F37: 6.2 | G37: 85.8 | H37: 0.03 | I37: 0.04 | J37: 122.25 | K37: 0 | L37: 34.78 | M37: 88.69 | N37: 247.73 | O37: 40.39 | P37: 15.18 | Q37: 30.31 | R37: 0.55 | S37: 10.73 | T37: 0.26 | U37: 12.66
A38: 100 | B38: Суп картофельный с вермишелью | C38: 200 | D38: 2.3 | E38: 2.2 | F38: 16.2 | G38: 94.4 | H38: 0.1 | I38: 0 | J38: 0.2 | K38: 0 | L38: 5.3 | M38: 0 | N38: 0 | O38: 19.2 | P38: 18.7 | Q38: 46.1 | R38: 0.9 | S38: 0 | T38: 0 | U38: 0
A39: 54-21гн-2020 | B39: Какао с молоком | C39: 200 | D39: 4.7 | E39: 3.5 | F39: 12.5 | G39: 100.4 | H39: 0.04 | I39: 0.16 | J39: 17.25 | K39: 0 | L39: 0.68 | M39: 49.95 | N39: 220.33 | O39: 167.68 | P39: 34.32 | Q39: 130.28 | R39: 1.09 | S39: 11.7 | T39: 2.29 | U39: 38.25
A40: Пром. | B40: Хлеб пшеничный | C40: 30 | D40: 2.3 | E40: 0.2 | F40: 14.8 | G40: 70.3 | H40: 0.03 | I40: 0.01 | J40: 0 | K40: 0 | L40: 0 | M40: 149.7 | N40: 27.9 | O40: 6 | P40: 4.2 | Q40: 19.5 | R40: 0.33 | S40: 0.96 | T40: 1.8 | U40: 4.35
A41: Пром. | B41: Хлеб ржаной | C41: 20 | D41: 1.3 | E41: 0.2 | F41: 6.7 | G41: 34.2 | H41: 0.04 | I41: 0.02 | J41: 0 | K41: 0 | L41: 0 | M41: 122 | N41: 49 | O41: 7 | P41: 9.4 | Q41: 31.6 | R41: 0.78 | S41: 0 | T41: 6.18 | U41: 0
A42: Пром. | B42: Яблоко | C42: 100 | D42: 0.6 | E42: 0.6 | F42: 14.7 | G42: 66.6 | H42: 0.04 | I42: 0.03 | J42: 7.5 | K42: 0 | L42: 15 | M42: 39 | N42: 417 | O42: 24 | P42: 14 | Q42: 17 | R42: 3.3 | S42: 3 | T42: 0.4 | U42: 12
B43: Итого за Завтрак | C43: =SUM(C37:C42) -> 610 | D43: =SUM(D37:D42) -> 12.7 | E43: =SUM(E37:E42) -> 12.8 | F43: 71.1 | G43: 451.7 | H43: 0.28 | I43: 0.26 | J43: 147.2 | K43: 0 | L43: 55.76 | M43: 449.34 | N43: 961.96 | O43: 264.27 | P43: 95.8 | Q43: 274.79 | R43: 6.95 | S43: 26.39 | T43: 10.93 | U43: 67.26
B44: Итого за день | C44: =C43+C35 -> 910 | D44: 18.9 | E44: 19.7 | F44: 100.1 | G44: 655.5 | H44: 0.38 | I44: 0.4 | J44: 178.17 | K44: 0.1 | L44: 56.2 | M44: 706.38 | N44: 1147.31 | O44: 427.42 | P44: 128.07 | Q44: 434.91 | R44: 9.13 | S44: 63.55 | T44: 35.73 | U44: 83.37
A46: 3 день, 1 неделя
A47: № рецептуры | B47: Прием пищи, наименование блюда | C47: Масса | D47: Пищевые вещества | G47: Энергетическая ценность | H47: Витамины | M47: Минеральные вещества
D48: Белки | E48: Жиры | F48: Углеводы | H48: B1 | I48: B2 | J48: A | K48: D | L48: C | M48: Na | N48: K | O48: Ca | P48: Mg | Q48: P | R48: Fe | S48: I | T48: Se | U48: F
C49: г | D49: г | E49: г | F49: г | G49: ккал | H49: мг | I49: мг | J49: мкг рет.экв | K49: мкг | L49: мг | M49: мг | N49: мг | O49: мг | P49: мг | Q49: мг | R49: мг | S49: мкг | T49: мкг | U49: мкг
B50: Среда, 1 неделя
B51: Буфет | C51: 7-11
A52: 54-4гн-2020 | B52: Чай с молоком и сахаром | C52: 150 | D52: 1.2 | E52: 0.9 | F52: 6.5 | G52: 38.2 | H52: 0.01 | I52: 0.05 | J52: 5.18 | K52: 0 | L52: 0.23 | M52: 14.76 | N52: 61.01 | O52: 77.61 | P52: 7.44 | Q52: 34.75 | R52: 0.58 | S52: 3.38 | T52: 0.66 | U52: 7.5
A53: Пром. | B53: Сушка простая | C53: 10 | D53: 1.09 | E53: 0.13 | F53: 6.88 | G53: 33.1 | H53: 0.02 | I53: 0.01 | J53: 0 | K53: 0 | L53: 0 | M53: 46 | N53: 15 | O53: 3 | P53: 4 | Q53: 11 | R53: 0.3 | S53: 0 | T53: 0 | U53: 0
B54: Итого за буфет | C54: 170 | D54: 3.4 | E54: 1.2 | F54: 20.3 | G54: 104.3 | H54: 0.06 | I54: 0.06 | J54: 5.18 | K54: 0 | L54: 0.23 | M54: 135.76 | N54: 98.01 | O54: 83.61 | P54: 16.64 | Q54: 58.95 | R54: 1.16 | S54: 3.38 | T54: 0.66 | U54: 7.5
B55: Горячий завтрак | C55: 7-11
A56: 54-13з-2020 | B56: Салат из свеклы отварной с растительным маслом | C56: 60 | D56: 0.8 | E56: 2.7 | F56: 4.6 | G56: 45.6 | H56: 0.01 | I56: 0.02 | J56: 0.68 | K56: 0 | L56: 2.28 | M56: 78.77 | N56: 136.27 | O56: 19.21 | P56: 10.95 | Q56: 21.51 | R56: 0.7 | S56: 11.99 | T56: 0.35 | U56: 11.4
A57: 54-1г-2020 | B57: Макароны отварные | C57: 150 | D57: 5.3 | E57: 4.9 | F57: 32.8 | G57: 196.8 | H57: 0.06 | I57: 0.02 | J57: 18.36 | K57: 0.09 | L57: 0 | M57: 149.04 | N57: 53.8 | O57: 105.83 | P57: 7.19 | Q57: 40.7 | R57: 0.73 | S57: 20.77 | T57: 0.06 | U57: 11.92
A58: №243 | B58: Сосиски говяжьи отварные, п/ф (2 шт) | C58: 100 | D58: 13.2 | E58: 22.84 | F58: 1.8 | G58: 247.15 | H58: 0 | I58: 0 | J58: 0.08 | K58: 0.01 | L58: 0 | M58: 0 | N58: 0 | O58: 7.44 | P58: 15.51 | Q58: 137.39 | R58: 1.74 | S58: 0 | T58: 0 | U58: 0
A59: 54-3гн-2020 | B59: Чай с лимоном и сахаром | C59: 207 | D59: 0.2 | E59: 0.1 | F59: 6.6 | G59: 27.9 | H59: 0 | I59: 0.01 | J59: 0.38 | K59: 0 | L59: 1.16 | M59: 1.26 | N59: 30.23 | O59: 67 | P59: 4.56 | Q59: 8.52 | R59: 0.77 | S59: 0.01 | T59: 0.02 | U59: 0.7
A60: Пром. | B60: Хлеб ржаной | C60: 20 | D60: 1.3 | E60: 0.2 | F60: 6.7 | G60: 34.2 | H60: 0.04 | I60: 0.02 | J60: 0 | K60: 0 | L60: 0 | M60: 122 | N60: 49 | O60: 7 | P60: 9.4 | Q60: 31.6 | R60: 0.78 | S60: 0 | T60: 6.18 | U60: 0
A61: Пром. | B61: Хлеб пшеничный | C61: 30 | D61: 2.3 | E61: 0.2 | F61: 14.8 | G61: 70.3 | H61: 0.03 | I61: 0.01 | J61: 0 | K61: 0 | L61: 0 | M61: 149.7 | N61: 27.9 | O61: 6 | P61: 4.2 | Q61: 19.5 | R61: 0.33 | S61: 0.96 | T61: 1.8 | U61: 4.35
B62: Итого за Завтрак | C62: =SUM(C56:C61) -> 567 | D62: =SUM(D56:D61) -> 23.1 | E62: =SUM(E56:E61) -> 30.94 | F62: 67.3 | G62: 621.95 | H62: 0.14 | I62: 0.08 | J62: 19.5 | K62: 0.1 | L62: 3.44 | M62: 500.77 | N62: 297.2 | O62: 212.48 | P62: 51.81 | Q62: 259.22 | R62: 5.05 | S62: 33.73 | T62: 8.41 | U62: 28.37
B63: Итого за день | C63: =C62+C54 -> 737 | D63: 26.5 | E63: 32.14 | F63: 87.6 | G63: 726.25 | H63: 0.2 | I63: 0.14 | J63: 24.68 | K63: 0.1 | L63: 3.67 | M63: 636.53 | N63: 395.21 | O63: 296.09 | P63: 68.45 | Q63: 318.17 | R63: 6.21 | S63: 37.11 | T63: 9.07 | U63: 35.87
A65: 4 день, 1 неделя
A66: № рецептуры | B66: Прием пищи, наименование блюда | C66: Масса | D66: Пищевые вещества | G66: Энергетическая ценность | H66: Витамины | M66: Минеральные вещества
D67: Белки | E67: Жиры | F67: Углеводы | H67: B1 | I67: B2 | J67: A | K67: D | L67: C | M67: Na | N67: K | O67: Ca | P67: Mg | Q67: P | R67: Fe | S67: I | T67: Se | U67: F
C68: г | D68: г | E68: г | F68: г | G68: ккал | H68: мг | I68: мг | J68: мкг рет.экв | K68: мкг | L68: мг | M68: мг | N68: мг | O68: мг | P68: мг | Q68: мг | R68: мг | S68: мкг | T68: мкг | U68: мкг
B69: Четверг, 1 неделя
B70: Буфет | C70: 7-11
A71: 54-6к-2020 | B71: Каша вязкая молочная пшенная | C71: 150 | D71: 6.2 | E71: 7.6 | F71: 28.2 | G71: 206.2 | H71: 0.14 | I71: 0.11 | J71: 31.22 | K71: 0.1 | L71: 0.41 | M71: 254.01 | N71: 162.17 | O71: 107.34 | P71: 36.72 | Q71: 139.54 | R71: 0.99 | S71: 38.71 | T71: 2.33 | U71: 26.31
A72: 54-1гн-2020 | B72: Чай без сахара | C72: 150 | D72: 0.1 | E72: 0 | F72: 0 | G72: 1.1 | H72: 0 | I72: 0.01 | J72: 0.23 | K72: 0 | L72: 0.03 | M72: 0.47 | N72: 15.44 | O72: 49.47 | P72: 2.87 | Q72: 5.38 | R72: 0.54 | S72: 0 | T72: 0 | U72: 0
B73: Итого за буфет | C73: 300 | D73: 6.3 | E73: 7.6 | F73: 28.2 | G73: 207.3 | H73: 0.14 | I73: 0.12 | J73: 31.45 | K73: 0.1 | L73: 0.44 | M73: 254.48 | N73: 177.61 | O73: 156.81 | P73: 39.59 | Q73: 144.92 | R73: 1.53 | S73: 38.71 | T73: 2.33 | U73: 26.31
B74: Горячий завтрак | C74: 7-11
A75: 54-9з-2020 | B75: Салат из белокочанной капусты с морковью и яблоками с растительным маслом | C75: 60 | D75: 0.8 | E75: 6.1 | F75: 3.6 | G75: 72.5 | H75: 0.02 | I75: 0.02 | J75: 241.63 | K75: 0 | L75: 17.32 | M75: 87.51 | N75: 160.14 | O75: 23.5 | P75: 11.17 | Q75: 18.8 | R75: 0.56 | S75: 9.87 | T75: 0.15 | U75: 10.98
A76: 54-11г-2020 | B76: Картофельное пюре | C76: 150 | D76: 3.1 | E76: 5.3 | F76: 19.8 | G76: 139.4 | H76: 0.12 | I76: 0.11 | J76: 23.8 | K76: 0.09 | L76: 10.2 | M76: 161.78 | N76: 624.83 | O76: 39.49 | P76: 28.23 | Q76: 84.47 | R76: 1.03 | S76: 28.46 | T76: 0.78 | U76: 42.79
A77: № рец. 290 | B77: Птица тушеная в соусе | C77: 50/50 | D77: 13.8 | E77: 14.8 | F77: 3.9 | G77: 211 | H77: 0.1 | I77: 0 | J77: 0 | K77: 0 | L77: 1.5 | M77: 0 | N77: 0 | O77: 26.4 | P77: 16.6 | Q77: 115.3 | R77: 0.9 | S77: 0 | T77: 0 | U77: 0
A78: 54-2гн-2020 | B78: Кофейный напиток с молоком | C78: 200 | D78: 3.9 | E78: 2.9 | F78: 11.2 | G78: 86 | H78: 0.03 | I78: 0.13 | J78: 13.29 | K78: 0 | L78: 0.52 | M78: 38.55 | N78: 183.98 | O78: 148.32 | P78: 30.67 | Q78: 106.79 | R78: 1.06 | S78: 9 | T78: 1.76 | U78: 20
A79: Пром. | B79: Хлеб ржаной | C79: 20 | D79: 1.3 | E79: 0.2 | F79: 6.7 | G79: 34.2 | H79: 0.04 | I79: 0.02 | J79: 0 | K79: 0 | L79: 0 | M79: 122 | N79: 49 | O79: 7 | P79: 9.4 | Q79: 31.6 | R79: 0.78 | S79: 0 | T79: 6.18 | U79: 0
A80: Пром. | B80: Хлеб пшеничный | C80: 30 | D80: 2.3 | E80: 0.2 | F80: 14.8 | G80: 70.3 | H80: 0.03 | I80: 0.01 | J80: 0 | K80: 0 | L80: 0 | M80: 149.7 | N80: 27.9 | O80: 6 | P80: 4.2 | Q80: 19.5 | R80: 0.33 | S80: 0.96 | T80: 1.8 | U80: 4.35
B81: Итого за Завтрак | C81: 560 | D81: =SUM(D75:D80) -> 25.2 | E81: =SUM(E75:E80) -> 29.5 | F81: 60 | G81: 613.4 | H81: 0.34 | I81: 0.29 | J81: 278.72 | K81: 0.09 | L81: 29.54 | M81: 559.54 | N81: 1045.85 | O81: 250.71 | P81: 100.27 | Q81: 376.46 | R81: 4.66 | S81: 48.29 | T81: 10.67 | U81: 78.12
B82: Итого за день | C82: =C81+C73 -> 860 | D82: =D81+D73 -> 31.5 | E82: 37.1 | F82: 88.2 | G82: 820.7 | H82: 0.48 | I82: 0.41 | J82: 310.17 | K82: 0.19 | L82: 29.98 | M82: 814.02 | N82: 1223.46 | O82: 407.52 | P82: 139.86 | Q82: 521.38 | R82: 6.19 | S82: 87 | T82: 13 | U82: 104.43
A84: 5 день, 1 неделя
A85: № рецептуры | B85: Прием пищи, наименование блюда | C85: Масса | D85: Пищевые вещества | G85: Энергетическая ценность | H85: Витамины | M85: Минеральные вещества
D86: Белки | E86: Жиры | F86: Углеводы | H86: B1 | I86: B2 | J86: A | K86: D | L86: C | M86: Na | N86: K | O86: Ca | P86: Mg | Q86: P | R86: Fe | S86: I | T86: Se | U86: F
C87: г | D87: г | E87: г | F87: г | G87: ккал | H87: мг | I87: мг | J87: мкг рет.экв | K87: мкг | L87: мг | M87: мг | N87: мг | O87: мг | P87: мг | Q87: мг | R87: мг | S87: мкг | T87: мкг | U87: мкг
B88: Пятница, 1 неделя
B89: Буфет | C89: 7-11
A90: 54-1г-2020 | B90: Макароны отварные | C90: 150 | D90: 5.3 | E90: 4.9 | F90: 32.8 | G90: 196.8 | H90: 0.06 | I90: 0.02 | J90: 18.36 | K90: 0.09 | L90: 0 | M90: 149.04 | N90: 53.8 | O90: 105.83 | P90: 7.19 | Q90: 40.7 | R90: 0.73 | S90: 20.77 | T90: 0.06 | U90: 11.92
A91: 54-2гн-2020 | B91: Чай с сахаром | C91: 150 | D91: 0.1 | E91: 0 | F91: 4.8 | G91: 20.1 | H91: 0 | I91: 0.01 | J91: 0.23 | K91: 0 | L91: 0.03 | M91: 0.51 | N91: 15.57 | O91: 49.56 | P91: 2.87 | Q91: 5.38 | R91: 0.55 | S91: 0 | T91: 0 | U91: 0
B92: Итого за буфет | C92: 300 | D92: 5.4 | E92: 4.9 | F92: 37.6 | G92: 216.9 | H92: 0.06 | I92: 0.03 | J92: 18.59 | K92: 0.09 | L92: 0.03 | M92: 149.55 | N92: 69.37 | O92: 155.39 | P92: 10.06 | Q92: 46.08 | R92: 1.28 | S92: 20.77 | T92: 0.06 | U92: 11.92
B93: Горячий завтрак | C93: 7-11
A94: 54-11з-2020 | B94: Салат из моркови с яблоками с растительным маслом | C94: 60 | D94: 0.5 | E94: 6.1 | F94: 4.3 | G94: 74.3 | H94: 0.03 | I94: 0.03 | J94: 732.9 | K94: 0 | L94: 3.63 | M94: 89.79 | N94: 123.26 | O94: 13.5 | P94: 15.57 | Q94: 22.38 | R94: 0.66 | S94: 10.19 | T94: 0.09 | U94: 21.57
A95: 54-6г-2020 | B95: Плов из говядины | C95: 160/40 | D95: 15.32 | E95: 14.73 | F95: 38.58 | G95: 348.3 | H95: 0.07 | I95: 0.12 | J95: 261.6 | K95: 0.1 | L95: 0.08 | M95: 276 | N95: 267 | O95: 117 | P95: 44 | Q95: 194 | R95: 2.2 | S95: 38.67 | T95: 7.3 | U95: 81.72
A96: 54-4гн-2020 | B96: Компот из кураги | C96: 200 | D96: 0.98 | E96: 0.05 | F96: 15.64 | G96: 66.9 | H96: 0.01 | I96: 0.03 | J96: 69.96 | K96: 0 | L96: 0 | M96: 3 | N96: 285 | O96: 90 | P96: 18 | Q96: 25 | R96: 0.6 | S96: 0 | T96: 0 | U96: 0
A97: Пром. | B97: Хлеб ржаной | C97: 20 | D97: 1.3 | E97: 0.2 | F97: 6.7 | G97: 34.2 | H97: 0.04 | I97: 0.02 | J97: 0 | K97: 0 | L97: 0 | M97: 122 | N97: 49 | O97: 7 | P97: 9.4 | Q97: 31.6 | R97: 0.78 | S97: 0 | T97: 6.18 | U97: 0
A98: Пром. | B98: Хлеб пшеничный | C98: 30 | D98: 2.3 | E98: 0.2 | F98: 14.8 | G98: 70.3 | H98: 0.03 | I98: 0.01 | J98: 0 | K98: 0 | L98: 0 | M98: 149.7 | N98: 27.9 | O98: 6 | P98: 4.2 | Q98: 19.5 | R98: 0.33 | S98: 0.96 | T98: 1.8 | U98: 4.35
B99: Итого за Завтрак | C99: 510 | D99: =SUM(D94:D98) -> 20.4 | E99: =SUM(E94:E98) -> 21.28 | F99: 80.02 | G99: 594 | H99: 0.18 | I99: 0.21 | J99: 1064.46 | K99: 0.1 | L99: 3.71 | M99: 640.49 | N99: 752.16 | O99: 233.5 | P99: 91.17 | Q99: 292.48 | R99: 4.57 | S99: 49.82 | T99: 15.37 | U99: 107.64
B100: Итого за день | C100: =C99+C92 -> 810 | D100: 25.8 | E100: 26.18 | F100: 117.62 | G100: 810.9 | H100: 0.24 | I100: 0.24 | J100: 1083.05 | K100: 0.19 | L100: 3.74 | M100: 790.04 | N100: 821.53 | O100: 388.89 | P100: 101.23 | Q100: 338.56 | R100: 5.85 | S100: 70.59 | T100: 15.43 | U100: 119.56
A102: 6 день, 1 неделя
A103: № рецептуры | B103: Прием пищи, наименование блюда | C103: Масса | D103: Пищевые вещества | G103: Энергетическая ценность | H103: Витамины | M103: Минеральные вещества
D104: Белки | E104: Жиры | F104: Углеводы | H104: B1 | I104: B2 | J104: A | K104: D | L104: C | M104: Na | N104: K | O104: Ca | P104: Mg | Q104: P | R104: Fe | S104: I | T104: Se | U104: F
C105: г | D105: г | E105: г | F105: г | G105: ккал | H105: мг | I105: мг | J105: мкг рет.экв | K105: мкг | L105: мг | M105: мг | N105: мг | O105: мг | P105: мг | Q105: мг | R105: мг | S105: мкг | T105: мкг | U105: мкг
B106: Суббота, 1 неделя
B107: Буфет | C107: 7-11
A108: 54-3гн-2020 | B108: Чай с лимоном и сахаром | C108: 155 | D108: 0.2 | E108: 0 | F108: 5 | G108: 20.9 | H108: 0 | I108: 0.01 | J108: 0.29 | K108: 0 | L108: 0.87 | M108: 0.95 | N108: 22.67 | O108: 50.25 | P108: 3.42 | Q108: 6.39 | R108: 0.58 | S108: 0.01 | T108: 0.02 | U108: 0.53
A109: Пром. | B109: Сушка простая | C109: 10 | D109: 1.09 | E109: 0.13 | F109: 6.88 | G109: 33.1 | H109: 0.02 | I109: 0.01 | J109: 0 | K109: 0 | L109: 0 | M109: 46 | N109: 15 | O109: 3 | P109: 4 | Q109: 11 | R109: 0.3 | S109: 0 | T109: 0 | U109: 0
B110: Итого за буфет | C110: 175 | D110: 2.4 | E110: 0.3 | F110: 18.8 | G110: 87 | H110: 0.05 | I110: 0.02 | J110: 0.29 | K110: 0 | L110: 0.87 | M110: 121.95 | N110: 59.67 | O110: 56.25 | P110: 12.62 | Q110: 30.59 | R110: 1.16 | S110: 0.01 | T110: 0.02 | U110: 0.53
B111: Горячий завтрак | C111: 7-11
A112: 54-16з-2020 | B112: Винегрет с растительным маслом | C112: 60 | D112: 0.7 | E112: 5.4 | F112: 4 | G112: 67.1 | H112: 0.02 | I112: 0.02 | J112: 72.89 | K112: 0 | L112: 2.26 | M112: 200.99 | N112: 127.85 | O112: 12.1 | P112: 9.66 | Q112: 21.4 | R112: 0.41 | S112: 7.86 | T112: 0.13 | U112: 11.85
A113: 54-22м-2020 | B113: Рагу из курицы | C113: 140/60 | D113: 21 | E113: 7 | F113: 17.5 | G113: 217.3 | H113: 0.14 | I113: 0.11 | J113: 259.68 | K113: 0 | L113: 11.25 | M113: 281.38 | N113: 738.57 | O113: 32.19 | P113: 93.35 | Q113: 192.51 | R113: 2.13 | S113: 42.97 | T113: 17.04 | U113: 156.36
A114: 54-23гн-2020 | B114: Кофейный напиток с молоком | C114: 200 | D114: 3.9 | E114: 2.9 | F114: 11.2 | G114: 86 | H114: 0.03 | I114: 0.13 | J114: 13.29 | K114: 0 | L114: 0.52 | M114: 38.55 | N114: 183.98 | O114: 148.32 | P114: 30.67 | Q114: 106.79 | R114: 1.06 | S114: 9 | T114: 1.76 | U114: 20
A115: Пром. | B115: Хлеб пшеничный | C115: 30 | D115: 2.3 | E115: 0.2 | F115: 14.8 | G115: 70.3 | H115: 0.03 | I115: 0.01 | J115: 0 | K115: 0 | L115: 0 | M115: 149.7 | N115: 27.9 | O115: 6 | P115: 4.2 | Q115: 19.5 | R115: 0.33 | S115: 0.96 | T115: 1.8 | U115: 4.35
A116: Пром. | B116: Хлеб ржаной | C116: 20 | D116: 1.3 | E116: 0.2 | F116: 6.7 | G116: 34.2 | H116: 0.04 | I116: 0.02 | J116: 0 | K116: 0 | L116: 0 | M116: 122 | N116: 49 | O116: 7 | P116: 9.4 | Q116: 31.6 | R116: 0.78 | S116: 0 | T116: 6.18 | U116: 0
B117: Итого за Завтрак | C117: 510 | D117: =SUM(D112:D116) -> 29.2 | E117: =SUM(E112:E116) -> 15.7 | F117: 54.2 | G117: 474.9 | H117: 0.26 | I117: 0.29 | J117: 345.86 | K117: 0 | L117: 14.03 | M117: 792.62 | N117: 1127.3 | O117: 205.61 | P117: 147.28 | Q117: 371.8 | R117: 4.71 | S117: 60.79 | T117: 26.91 | U117: 192.56
B118: Итого за день | C118: =C117+C110 -> 685 | D118: 31.6 | E118: 16 | F118: 73 | G118: 561.9 | H118: 0.31 | I118: 0.31 | J118: 346.15 | K118: 0 | L118: 14.9 | M118: 914.57 | N118: 1186.97 | O118: 261.86 | P118: 159.9 | Q118: 402.39 | R118: 5.87 | S118: 60.8 | T118: 26.93 | U118: 193.09
A120: 7 день, 2 неделя
A121: № рецептуры | B121: Прием пищи, наименование блюда | C121: Масса | D121: Пищевые вещества | G121: Энергетическая ценность | H121: Витамины | M121: Минеральные вещества
D122: Белки | E122: Жиры | F122: Углеводы | H122: B1 | I122: B2 | J122: A | K122: D | L122: C | M122: Na | N122: K | O122: Ca | P122: Mg | Q122: P | R122: Fe | S122: I | T122: Se | U122: F
C123: г | D123: г | E123: г | F123: г | G123: ккал | H123: мг | I123: мг | J123: мкг рет.экв | K123: мкг | L123: мг | M123: мг | N123: мг | O123: мг | P123: мг | Q123: мг | R123: мг | S123: мкг | T123: мкг | U123: мкг
B124: Понедельник, 2 неделя
B125: Буфет | C125: 7-11
A126: 54-21гн-2020 | B126: Какао с молоком | C126: 150 | D126: 3.5 | E126: 2.6 | F126: 9.4 | G126: 75.3 | H126: 0.03 | I126: 0.12 | J126: 12.94 | K126: 0 | L126: 0.51 | M126: 37.46 | N126: 165.25 | O126: 125.76 | P126: 25.74 | Q126: 97.71 | R126: 0.82 | S126: 8.78 | T126: 1.72 | U126: 28.69
A127: Пром. | B127: Сушка простая | C127: 10 | D127: 1.09 | E127: 0.13 | F127: 6.88 | G127: 33.1 | H127: 0.02 | I127: 0.01 | J127: 0 | K127: 0 | L127: 0 | M127: 46 | N127: 15 | O127: 3 | P127: 4 | Q127: 11 | R127: 0.3 | S127: 0 | T127: 0 | U127: 0
B128: Итого за буфет | C128: 170 | D128: 5.7 | E128: 2.9 | F128: 23.2 | G128: 141.4 | H128: 0.08 | I128: 0.13 | J128: 12.94 | K128: 0 | L128: 0.51 | M128: 158.46 | N128: 202.25 | O128: 131.76 | P128: 34.94 | Q128: 121.91 | R128: 1.4 | S128: 8.78 | T128: 1.72 | U128: 28.69
B129: Горячий завтрак | C129: 7-11
A130: 54-11з-2020 | B130: Салат из моркови с яблоками с растительным маслом | C130: 60 | D130: 0.5 | E130: 6.1 | F130: 4.3 | G130: 74.3 | H130: 0.03 | I130: 0.03 | J130: 732.9 | K130: 0 | L130: 3.63 | M130: 89.79 | N130: 123.26 | O130: 13.5 | P130: 15.57 | Q130: 22.38 | R130: 0.66 | S130: 10.19 | T130: 0.09 | U130: 21.57
A131: 62 | B131: Борщ | C131: 200 | D131: 2.6 | E131: 4.5 | F131: 13.1 | G131: 107 | H131: 0.1 | I131: 0 | J131: 0.2 | K131: 0 | L131: 10.7 | M131: 0 | N131: 0 | O131: 43.5 | P131: 26.9 | Q131: 57.4 | R131: 1.4 | S131: 0 | T131: 0 | U131: 0
A132: 54-2гн-2020 | B132: Чай с сахаром | C132: 200 | D132: 0.2 | E132: 0 | F132: 6.4 | G132: 26.8 | H132: 0 | I132: 0.01 | J132: 0.3 | K132: 0 | L132: 0.04 | M132: 0.68 | N132: 20.76 | O132: 66.08 | P132: 3.83 | Q132: 7.18 | R132: 0.73 | S132: 0 | T132: 0 | U132: 0
A133: Пром. | B133: Хлеб пшеничный | C133: 30 | D133: 2.3 | E133: 0.2 | F133: 14.8 | G133: 70.3 | H133: 0.03 | I133: 0.01 | J133: 0 | K133: 0 | L133: 0 | M133: 149.7 | N133: 27.9 | O133: 6 | P133: 4.2 | Q133: 19.5 | R133: 0.33 | S133: 0.96 | T133: 1.8 | U133: 4.35
A134: Пром. | B134: Хлеб ржаной | C134: 20 | D134: 1.3 | E134: 0.2 | F134: 6.7 | G134: 34.2 | H134: 0.04 | I134: 0.02 | J134: 0 | K134: 0 | L134: 0 | M134: 122 | N134: 49 | O134: 7 | P134: 9.4 | Q134: 31.6 | R134: 0.78 | S134: 0 | T134: 6.18 | U134: 0
B135: Итого за Завтрак | C135: =SUM(C130:C134) -> 510 | D135: =SUM(D130:D134) -> 6.9 | E135: =SUM(E130:E134) -> 11 | F135: 45.3 | G135: 312.6 | H135: 0.2 | I135: 0.07 | J135: 733.4 | K135: 0 | L135: 14.37 | M135: 362.17 | N135: 220.92 | O135: 136.08 | P135: 59.9 | Q135: 138.06 | R135: 3.9 | S135: 11.15 | T135: 8.07 | U135: 25.92
B136: Итого за день | C136: =C135+C128 -> 680 | D136: 12.6 | E136: 13.9 | F136: 68.5 | G136: 454 | H136: 0.28 | I136: 0.2 | J136: 746.34 | K136: 0 | L136: 14.88 | M136: 520.63 | N136: 423.17 | O136: 267.84 | P136: 94.84 | Q136: 259.97 | R136: 5.3 | S136: 19.93 | T136: 9.79 | U136: 54.61
A138: 8 день, 2 неделя
A139: № рецептуры | B139: Прием пищи, наименование блюда | C139: Масса | D139: Пищевые вещества | G139: Энергетическая ценность | H139: Витамины | M139: Минеральные вещества
D140: Белки | E140: Жиры | F140: Углеводы | H140: B1 | I140: B2 | J140: A | K140: D | L140: C | M140: Na | N140: K | O140: Ca | P140: Mg | Q140: P | R140: Fe | S140: I | T140: Se | U140: F
C141: г | D141: г | E141: г | F141: г | G141: ккал | H141: мг | I141: мг | J141: мкг рет.экв | K141: мкг | L141: мг | M141: мг | N141: мг | O141: мг | P141: мг | Q141: мг | R141: мг | S141: мкг | T141: мкг | U141: мкг
B142: Вторник, 2 неделя
B143: Буфет | C143: 7-11
A144: 54-13к-2020 | B144: Каша вязкая молочная пшеничная | C144: 150 | D144: 6.1 | E144: 6.9 | F144: 29 | G144: 202.7 | H144: 0.1 | I144: 0.13 | J144: 30.74 | K144: 0.1 | L144: 0.41 | M144: 256.57 | N144: 169.91 | O144: 113.68 | P144: 29.4 | Q144: 154.74 | R144: 1.64 | S144: 37.16 | T144: 24.8 | U144: 16.11
A145: 54-1гн-2020 | B145: Чай без сахара | C145: 150 | D145: 0.1 | E145: 0 | F145: 0 | G145: 1.1 | H145: 0 | I145: 0.01 | J145: 0.23 | K145: 0 | L145: 0.03 | M145: 0.47 | N145: 15.44 | O145: 49.47 | P145: 2.87 | Q145: 5.38 | R145: 0.54 | S145: 0 | T145: 0 | U145: 0
B146: Итого за буфет | C146: 300 | D146: 6.2 | E146: 6.9 | F146: 29 | G146: 203.8 | H146: 0.1 | I146: 0.14 | J146: 30.97 | K146: 0.1 | L146: 0.44 | M146: 257.04 | N146: 185.35 | O146: 163.15 | P146: 32.27 | Q146: 160.12 | R146: 2.18 | S146: 37.16 | T146: 24.8 | U146: 16.11
B147: Горячий завтрак | C147: 7-11
A148: 54-13з-2020 | B148: Салат из свеклы отварной с растительным маслом | C148: 60 | D148: 0.8 | E148: 2.7 | F148: 4.6 | G148: 45.6 | H148: 0.01 | I148: 0.02 | J148: 0.68 | K148: 0 | L148: 2.28 | M148: 78.77 | N148: 136.27 | O148: 19.21 | P148: 10.95 | Q148: 21.51 | R148: 0.7 | S148: 11.99 | T148: 0.35 | U148: 11.4
A149: 54-12м-2020 | B149: Плов с курицей | C149: 150/50 | D149: 18.5 | E149: 7.4 | F149: 33.1 | G149: 273.2 | H149: 0.07 | I149: 0.06 | J149: 144.87 | K149: 0 | L149: 2.08 | M149: 272.9 | N149: 287.76 | O149: 72.64 | P149: 78.85 | Q149: 174.89 | R149: 1.53 | S149: 37.41 | T149: 19.63 | U149: 118.1
A150: 54-3гн-2020 | B150: Чай с лимоном и сахаром | C150: 207 | D150: 0.2 | E150: 0.1 | F150: 6.6 | G150: 27.9 | H150: 0 | I150: 0.01 | J150: 0.38 | K150: 0 | L150: 1.16 | M150: 1.26 | N150: 30.23 | O150: 67 | P150: 4.56 | Q150: 8.52 | R150: 0.77 | S150: 0.01 | T150: 0.02 | U150: 0.7
A151: Пром. | B151: Хлеб пшеничный | C151: 30 | D151: 2.3 | E151: 0.2 | F151: 14.8 | G151: 70.3 | H151: 0.03 | I151: 0.01 | J151: 0 | K151: 0 | L151: 0 | M151: 149.7 | N151: 27.9 | O151: 6 | P151: 4.2 | Q151: 19.5 | R151: 0.33 | S151: 0.96 | T151: 1.8 | U151: 4.35
A152: Пром. | B152: Хлеб ржаной | C152: 20 | D152: 1.3 | E152: 0.2 | F152: 6.7 | G152: 34.2 | H152: 0.04 | I152: 0.02 | J152: 0 | K152: 0 | L152: 0 | M152: 122 | N152: 49 | O152: 7 | P152: 9.4 | Q152: 31.6 | R152: 0.78 | S152: 0 | T152: 6.18 | U152: 0
B153: Итого за Завтрак | C153: 517 | D153: =SUM(D148:D152) -> 23.1 | E153: =SUM(E148:E152) -> 10.6 | F153: 65.8 | G153: 451.2 | H153: 0.15 | I153: 0.12 | J153: 145.93 | K153: 0 | L153: 5.52 | M153: 624.63 | N153: 531.16 | O153: 171.85 | P153: 107.96 | Q153: 256.02 | R153: 4.11 | S153: 50.37 | T153: 27.98 | U153: 134.55
B154: Итого за день | C154: =C153+C146 -> 817 | D154: 29.3 | E154: 17.5 | F154: 94.8 | G154: 655 | H154: 0.25 | I154: 0.26 | J154: 176.9 | K154: 0.1 | L154: 5.96 | M154: 881.67 | N154: 716.51 | O154: 335 | P154: 140.23 | Q154: 416.14 | R154: 6.29 | S154: 87.53 | T154: 52.78 | U154: 150.66
A156: 9 день, 2 неделя
A157: № рецептуры | B157: Прием пищи, наименование блюда | C157: Масса | D157: Пищевые вещества | G157: Энергетическая ценность | H157: Витамины | M157: Минеральные вещества
D158: Белки | E158: Жиры | F158: Углеводы | H158: B1 | I158: B2 | J158: A | K158: D | L158: C | M158: Na | N158: K | O158: Ca | P158: Mg | Q158: P | R158: Fe | S158: I | T158: Se | U158: F
C159: г | D159: г | E159: г | F159: г | G159: ккал | H159: мг | I159: мг | J159: мкг рет.экв | K159: мкг | L159: мг | M159: мг | N159: мг | O159: мг | P159: мг | Q159: мг | R159: мг | S159: мкг | T159: мкг | U159: мкг
B160: Среда, 2 неделя
B161: Буфет | C161: 7-11
A162: 54-2гн-2020 | B162: Чай с сахаром | C162: 150 | D162: 0.1 | E162: 0 | F162: 4.8 | G162: 20.1 | H162: 0 | I162: 0.01 | J162: 0.23 | K162: 0 | L162: 0.03 | M162: 0.51 | N162: 15.57 | O162: 49.56 | P162: 2.87 | Q162: 5.38 | R162: 0.55 | S162: 0 | T162: 0 | U162: 0
A163: Пром. | B163: Сушка простая | C163: 10 | D163: 1.09 | E163: 0.13 | F163: 6.88 | G163: 33.1 | H163: 0.02 | I163: 0.01 | J163: 0 | K163: 0 | L163: 0 | M163: 46 | N163: 15 | O163: 3 | P163: 4 | Q163: 11 | R163: 0.3 | S163: 0 | T163: 0 | U163: 0
B164: Итого за буфет | C164: 170 | D164: 2.3 | E164: 0.3 | F164: 18.6 | G164: 86.2 | H164: 0.05 | I164: 0.02 | J164: 0.23 | K164: 0 | L164: 0.03 | M164: 121.51 | N164: 52.57 | O164: 55.56 | P164: 12.07 | Q164: 29.58 | R164: 1.13 | S164: 0 | T164: 0 | U164: 0
B165: Горячий завтрак | C165: 7-11
A166: 54-16з-2020 | B166: Винегрет с растительным маслом | C166: 60 | D166: 0.7 | E166: 5.4 | F166: 4 | G166: 67.1 | H166: 0.02 | I166: 0.02 | J166: 72.89 | K166: 0 | L166: 2.26 | M166: 200.99 | N166: 127.85 | O166: 12.1 | P166: 9.66 | Q166: 21.4 | R166: 0.41 | S166: 7.86 | T166: 0.13 | U166: 11.85
A167: 54-11г-2020 | B167: Картофельное пюре | C167: 150 | D167: 3.1 | E167: 5.3 | F167: 19.8 | G167: 139.4 | H167: 0.12 | I167: 0.11 | J167: 23.8 | K167: 0.09 | L167: 10.2 | M167: 161.78 | N167: 624.83 | O167: 39.49 | P167: 28.23 | Q167: 84.47 | R167: 1.03 | S167: 28.46 | T167: 0.78 | U167: 42.79
A168: 54-7р-2020 | B168: Рыба припущенная в молоко | C168: 70/30 | D168: 13.09 | E168: 7.52 | F168: 2.89 | G168: 131.6 | H168: 0.08 | I168: 0.11 | J168: 9.02 | K168: 0.16 | L168: 1 | M168: 111 | N168: 347 | O168: 68 | P168: 44 | Q168: 202 | R168: 0.7 | S168: 133.48 | T168: 11.9 | U168: 572.6
A169: 54-21гн-2020 | B169: Какао с молоком | C169: 200 | D169: 4.7 | E169: 3.5 | F169: 12.5 | G169: 100.4 | H169: 0.04 | I169: 0.16 | J169: 17.25 | K169: 0 | L169: 0.68 | M169: 49.95 | N169: 220.33 | O169: 167.68 | P169: 34.32 | Q169: 130.28 | R169: 1.09 | S169: 11.7 | T169: 2.29 | U169: 38.25
A170: Пром. | B170: Яблоко | C170: 100 | D170: 0.6 | E170: 0.6 | F170: 14.7 | G170: 66.6 | H170: 0.04 | I170: 0.03 | J170: 7.5 | K170: 0 | L170: 15 | M170: 39 | N170: 417 | O170: 24 | P170: 14 | Q170: 17 | R170: 3.3 | S170: 3 | T170: 0.4 | U170: 12
A171: Пром. | B171: Хлеб пшеничный | C171: 30 | D171: 2.3 | E171: 0.2 | F171: 14.8 | G171: 70.3 | H171: 0.03 | I171: 0.01 | J171: 0 | K171: 0 | L171: 0 | M171: 149.7 | N171: 27.9 | O171: 6 | P171: 4.2 | Q171: 19.5 | R171: 0.33 | S171: 0.96 | T171: 1.8 | U171: 4.35
A172: Пром. | B172: Хлеб ржаной | C172: 20 | D172: 1.3 | E172: 0.2 | F172: 6.7 | G172: 34.2 | H172: 0.04 | I172: 0.02 | J172: 0 | K172: 0 | L172: 0 | M172: 122 | N172: 49 | O172: 7 | P172: 9.4 | Q172: 31.6 | R172: 0.78 | S172: 0 | T172: 6.18 | U172: 0
B173: Итого за Завтрак | C173: 660 | D173: =SUM(D166:D172) -> 25.79 | E173: =SUM(E166:E172) -> 22.72 | F173: 75.39 | G173: 609.6 | H173: 0.37 | I173: 0.46 | J173: 130.46 | K173: 0.25 | L173: 29.14 | M173: 834.42 | N173: 1813.91 | O173: 324.27 | P173: 143.81 | Q173: 506.25 | R173: 7.64 | S173: 185.46 | T173: 23.48 | U173: 681.84
B174: Итого за день | C174: =C173+C164 -> 830 | D174: =D173+D164 -> 28.09 | E174: =E173+E164 -> 23.02 | F174: 93.99 | G174: 695.8 | H174: 0.42 | I174: 0.48 | J174: 130.69 | K174: 0.25 | L174: 29.17 | M174: 955.93 | N174: 1866.48 | O174: 379.83 | P174: 155.88 | Q174: 535.83 | R174: 8.77 | S174: 185.46 | T174: 23.48 | U174: 681.84
A176: 10 день, 2 неделя
A177: № рецептуры | B177: Прием пищи, наименование блюда | C177: Масса | D177: Пищевые вещества | G177: Энергетическая ценность | H177: Витамины | M177: Минеральные вещества
D178: Белки | E178: Жиры | F178: Углеводы | H178: B1 | I178: B2 | J178: A | K178: D | L178: C | M178: Na | N178: K | O178: Ca | P178: Mg | Q178: P | R178: Fe | S178: I | T178: Se | U178: F
C179: г | D179: г | E179: г | F179: г | G179: ккал | H179: мг | I179: мг | J179: мкг рет.экв | K179: мкг | L179: мг | M179: мг | N179: мг | O179: мг | P179: мг | Q179: мг | R179: мг | S179: мкг | T179: мкг | U179: мкг
B180: Четверг, 2 неделя
B181: Буфет | C181: 7-11
A182: 54-6к-2020 | B182: Каша вязкая молочная пшенная | C182: 150 | D182: 6.2 | E182: 7.6 | F182: 28.2 | G182: 206.2 | H182: 0.14 | I182: 0.11 | J182: 31.22 | K182: 0.1 | L182: 0.41 | M182: 254.01 | N182: 162.17 | O182: 107.34 | P182: 36.72 | Q182: 139.54 | R182: 0.99 | S182: 38.71 | T182: 2.33 | U182: 26.31
A183: 54-3гн-2020 | B183: Чай с лимоном и сахаром | C183: 155 | D183: 0.2 | E183: 0 | F183: 5 | G183: 20.9 | H183: 0 | I183: 0.01 | J183: 0.29 | K183: 0 | L183: 0.87 | M183: 0.95 | N183: 22.67 | O183: 50.25 | P183: 3.42 | Q183: 6.39 | R183: 0.58 | S183: 0.01 | T183: 0.02 | U183: 0.53
B184: Итого за буфет | C184: 305 | D184: 6.4 | E184: 7.6 | F184: 33.2 | G184: 227.1 | H184: 0.14 | I184: 0.12 | J184: 31.51 | K184: 0.1 | L184: 1.28 | M184: 254.96 | N184: 184.84 | O184: 157.59 | P184: 40.14 | Q184: 145.93 | R184: 1.57 | S184: 38.72 | T184: 2.35 | U184: 26.84
B185: Горячий завтрак | C185: 7-11
A186: 54-7з-2020 | B186: Салат из белокочанной капусты с растительным маслом | C186: 60 | D186: 1.5 | E186: 6.1 | F186: 6.2 | G186: 85.8 | H186: 0.03 | I186: 0.04 | J186: 122.25 | K186: 0 | L186: 34.78 | M186: 88.69 | N186: 247.73 | O186: 40.39 | P186: 15.18 | Q186: 30.31 | R186: 0.55 | S186: 10.73 | T186: 0.26 | U186: 12.66
A187: 54-6г-2020 | B187: Рис отварной | C187: 150 | D187: 3.6 | E187: 4.8 | F187: 36.4 | G187: 203.5 | H187: 0.03 | I187: 0.02 | J187: 18.36 | K187: 0.09 | L187: 0 | M187: 152.8 | N187: 46.55 | O187: 106.65 | P187: 23.59 | Q187: 72.57 | R187: 0.49 | S187: 20.76 | T187: 7.24 | U187: 27.19
A188: 54-2м-2020 | B188: Гуляш из говядины | C188: 60/40 | D188: 13.76 | E188: 13.91 | F188: 3.9 | G188: 195.8 | H188: 0.04 | I188: 0.12 | J188: 25.46 | K188: 0.07 | L188: 1 | M188: 122 | N188: 322 | O188: 55 | P188: 23 | Q188: 166 | R188: 2.5 | S188: 17.06 | T188: 0.4 | U188: 62.71
A189: 54-21гн-2020 | B189: Кофейный напиток с молоком | C189: 200 | D189: 3.9 | E189: 2.9 | F189: 11.2 | G189: 86 | H189: 0.03 | I189: 0.13 | J189: 13.29 | K189: 0 | L189: 0.52 | M189: 38.55 | N189: 183.98 | O189: 148.32 | P189: 30.67 | Q189: 106.79 | R189: 1.06 | S189: 9 | T189: 1.76 | U189: 20
A190: Пром. | B190: Хлеб пшеничный | C190: 30 | D190: 2.3 | E190: 0.2 | F190: 14.8 | G190: 70.3 | H190: 0.03 | I190: 0.01 | J190: 0 | K190: 0 | L190: 0 | M190: 149.7 | N190: 27.9 | O190: 6 | P190: 4.2 | Q190: 19.5 | R190: 0.33 | S190: 0.96 | T190: 1.8 | U190: 4.35
A191: Пром. | B191: Хлеб ржаной | C191: 20 | D191: 1.3 | E191: 0.2 | F191: 6.7 | G191: 34.2 | H191: 0.04 | I191: 0.02 | J191: 0 | K191: 0 | L191: 0 | M191: 122 | N191: 49 | O191: 7 | P191: 9.4 | Q191: 31.6 | R191: 0.78 | S191: 0 | T191: 6.18 | U191: 0
B192: Итого за Завтрак | C192: 560 | D192: =SUM(D186:D191) -> 26.36 | E192: 28.11 | F192: 79.2 | G192: 675.6 | H192: 0.2 | I192: 0.34 | J192: 179.36 | K192: 0.16 | L192: 36.3 | M192: 673.74 | N192: 877.16 | O192: 363.36 | P192: 106.04 | Q192: 426.77 | R192: 5.71 | S192: 58.51 | T192: 17.64 | U192: 126.91
B193: Итого за день | C193: =C192+C184 -> 865 | D193: =D192+D184 -> 32.76 | E193: 35.71 | F193: 112.4 | G193: 902.7 | H193: 0.34 | I193: 0.46 | J193: 210.87 | K193: 0.26 | L193: 37.58 | M193: 928.7 | N193: 1062 | O193: 520.95 | P193: 146.18 | Q193: 572.7 | R193: 7.28 | S193: 97.23 | T193: 19.99 | U193: 153.75
A195: 11 день, 2 неделя
A196: № рецептуры | B196: Прием пищи, наименование блюда | C196: Масса | D196: Пищевые вещества | G196: Энергетическая ценность | H196: Витамины | M196: Минеральные вещества
D197: Белки | E197: Жиры | F197: Углеводы | H197: B1 | I197: B2 | J197: A | K197: D | L197: C | M197: Na | N197: K | O197: Ca | P197: Mg | Q197: P | R197: Fe | S197: I | T197: Se | U197: F
C198: г | D198: г | E198: г | F198: г | G198: ккал | H198: мг | I198: мг | J198: мкг рет.экв | K198: мкг | L198: мг | M198: мг | N198: мг | O198: мг | P198: мг | Q198: мг | R198: мг | S198: мкг | T198: мкг | U198: мкг
B199: Пятница, 2 неделя
B200: Буфет | C200: 7-11
A201: 54-9к-2020 | B201: Каша вязкая молочная овсяная | C201: 150 | D201: 6.4 | E201: 8.4 | F201: 25.7 | G201: 204.6 | H201: 0.15 | I201: 0.13 | J201: 30.15 | K201: 0.1 | L201: 0.39 | M201: 259.99 | N201: 205.54 | O201: 118.23 | P201: 47.12 | Q201: 175.03 | R201: 1.38 | S201: 38.44 | T201: 10.92 | U201: 46.71
A202: 54-2гн-2020 | B202: Чай с сахаром | C202: 150 | D202: 0.1 | E202: 0 | F202: 4.8 | G202: 20.1 | H202: 0 | I202: 0.01 | J202: 0.23 | K202: 0 | L202: 0.03 | M202: 0.51 | N202: 15.57 | O202: 49.56 | P202: 2.87 | Q202: 5.38 | R202: 0.55 | S202: 0 | T202: 0 | U202: 0
B203: Итого за буфет | C203: 300 | D203: 6.5 | E203: 8.4 | F203: 30.5 | G203: 224.7 | H203: 0.15 | I203: 0.14 | J203: 30.38 | K203: 0.1 | L203: 0.42 | M203: 260.5 | N203: 221.11 | O203: 167.79 | P203: 49.99 | Q203: 180.41 | R203: 1.93 | S203: 38.44 | T203: 10.92 | U203: 46.71
B204: Горячий завтрак | C204: 7-11
A205: 54-13з-2020 | B205: Салат из свеклы отварной с растительным маслом | C205: 60 | D205: 0.8 | E205: 2.7 | F205: 4.6 | G205: 45.6 | H205: 0.01 | I205: 0.02 | J205: 0.68 | K205: 0 | L205: 2.28 | M205: 78.77 | N205: 136.27 | O205: 19.21 | P205: 10.95 | Q205: 21.51 | R205: 0.7 | S205: 11.99 | T205: 0.35 | U205: 11.4
A206: 54-1г-2020 | B206: Макароны отварные | C206: 150 | D206: 5.3 | E206: 4.9 | F206: 32.8 | G206: 196.8 | H206: 0.06 | I206: 0.02 | J206: 18.36 | K206: 0.09 | L206: 0 | M206: 149.04 | N206: 53.8 | O206: 105.83 | P206: 7.19 | Q206: 40.7 | R206: 0.73 | S206: 20.77 | T206: 0.06 | U206: 11.92
A207: ном.рец №174 | B207: Тефтели мясные из говядины, полуфабрикат в соусе | C207: 75/30 | D207: 10.81 | E207: 10.4 | F207: 8.42 | G207: 168.9 | H207: 0 | I207: 0 | J207: 38.45 | K207: 0.01 | L207: 1.79 | M207: 3 | N207: 43 | O207: 45.75 | P207: 35.13 | Q207: 109 | R207: 1.6 | S207: 0 | T207: 0 | U207: 0
A208: 54-4гн-2020 | B208: Компот из кураги | C208: 200 | D208: 0.98 | E208: 0.05 | F208: 15.64 | G208: 66.9 | H208: 0.01 | I208: 0.03 | J208: 69.96 | K208: 0 | L208: 0 | M208: 3 | N208: 285 | O208: 90 | P208: 18 | Q208: 25 | R208: 0.6 | S208: 0 | T208: 0 | U208: 0
A209: Пром. | B209: Хлеб ржаной | C209: 20 | D209: 1.3 | E209: 0.2 | F209: 6.7 | G209: 34.2 | H209: 0.04 | I209: 0.02 | J209: 0 | K209: 0 | L209: 0 | M209: 122 | N209: 49 | O209: 7 | P209: 9.4 | Q209: 31.6 | R209: 0.78 | S209: 0 | T209: 6.18 | U209: 0
A210: Пром. | B210: Хлеб пшеничный | C210: 30 | D210: 2.3 | E210: 0.2 | F210: 14.8 | G210: 70.3 | H210: 0.03 | I210: 0.01 | J210: 0 | K210: 0 | L210: 0 | M210: 149.7 | N210: 27.9 | O210: 6 | P210: 4.2 | Q210: 19.5 | R210: 0.33 | S210: 0.96 | T210: 1.8 | U210: 4.35
B211: Итого за Завтрак | C211: 565 | D211: =SUM(D205:D210) -> 21.49 | E211: 18.45 | F211: 82.96 | G211: 582.7 | H211: 0.15 | I211: 0.1 | J211: 127.45 | K211: 0.1 | L211: 4.07 | M211: 505.51 | N211: 594.97 | O211: 273.79 | P211: 84.87 | Q211: 247.31 | R211: 4.74 | S211: 33.72 | T211: 8.39 | U211: 27.67
B212: Итого за день | C212: =C211+C203 -> 865 | D212: 27.99 | E212: 26.85 | F212: 113.46 | G212: 807.4 | H212: 0.3 | I212: 0.24 | J212: 157.83 | K212: 0.2 | L212: 4.49 | M212: 766.01 | N212: 816.08 | O212: 441.58 | P212: 134.86 | Q212: 427.72 | R212: 6.67 | S212: 72.16 | T212: 19.31 | U212: 74.38
A214: 12 день, 2 неделя
... 28 more rows

Sheet овз 11-18 лет
A1: Согласовано | O1: Утверждено
A2: Директор МБОУ "СОШ №2"г.Мензелинска | O2: ООО "КРЕПЫШ"
A3: __________________Габдуллин Н.С. | O3: _______________________Ефремов В.Ю.
A6: Меню для организации питания детей с ОВЗ в возрасте от 11 до 18 лет в образовательных учреждениях Мензелинского района РТ на 1 полугодие 2022-2023 учебный год.
A8: 1 день, 1 неделя
A9: № рецептуры | B9: Прием пищи, наименование блюда | C9: Масса | D9: Пищевые вещества | G9: Энергетическая ценность | H9: Витамины | M9: Минеральные вещества
D10: Белки | E10: Жиры | F10: Углеводы | H10: B1 | I10: B2 | J10: A | K10: D | L10: C | M10: Na | N10: K | O10: Ca | P10: Mg | Q10: P | R10: Fe | S10: I | T10: Se | U10: F
C11: г | D11: г | E11: г | F11: г | G11: ккал | H11: мг | I11: мг | J11: мкг рет.экв | K11: мкг | L11: мг | M11: мг | N11: мг | O11: мг | P11: мг | Q11: мг | R11: мг | S11: мкг | T11: мкг | U11: мкг
B12: Понедельник, 1 неделя
B13: Буфет | C13: 11-18
A14: 54-3гн-2020 | B14: Чай с лимоном и сахаром | C14: 155 | D14: 0.2 | E14: 0 | F14: 5 | G14: 20.9 | H14: 0 | I14: 0.01 | J14: 0.29 | K14: 0 | L14: 0.87 | M14: 0.95 | N14: 22.67 | O14: 50.25 | P14: 3.42 | Q14: 6.39 | R14: 0.58 | S14: 0.01 | T14: 0.02 | U14: 0.53
A15: Пром. | B15: Сушка простая | C15: 10 | D15: 1.09 | E15: 0.13 | F15: 6.88 | G15: 33.1 | H15: 0.02 | I15: 0.01 | J15: 0 | K15: 0 | L15: 0 | M15: 46 | N15: 15 | O15: 3 | P15: 4 | Q15: 11 | R15: 0.3 | S15: 0 | T15: 0 | U15: 0
B16: Итого за буфет | C16: 175 | D16: 2.4 | E16: 0.3 | F16: 18.8 | G16: 87 | H16: 0.05 | I16: 0.02 | J16: 0.29 | K16: 0 | L16: 0.87 | M16: 121.95 | N16: 59.67 | O16: 56.25 | P16: 12.62 | Q16: 30.59 | R16: 1.16 | S16: 0.01 | T16: 0.02 | U16: 0.53
B17: Горячий завтрак | C17: 11-18
A18: 54-11з | B18: Салат из моркови с яблоками с растительным маслом | C18: 100 | D18: 0.91 | E18: 10.17 | F18: 7.15 | G18: 123.8 | H18: 0.04 | I18: 0.03 | J18: 732.9 | K18: 0 | L18: 2 | M18: 114 | N18: 170 | O18: 19 | P18: 22 | Q18: 32 | R18: 1 | S18: 16.98 | T18: 0.2 | U18: 35.95
A19: 54-4г-2020 | B19: Каша гречневая рассыпчатая | C19: 180 | D19: 9.87 | E19: 7.61 | F19: 43.12 | G19: 280.5 | H19: 0.26 | I19: 0.14 | J19: 23.02 | K19: 0.11 | L19: 0 | M19: 180 | N19: 263 | O19: 57 | P19: 144 | Q19: 217 | R19: 4.8 | S19: 26.73 | T19: 4.3 | U19: 19.27
A20: ном.рец №174 | B20: Тефтели мясные из говядины, полуфабрикат в соусе | C20: 75/30 | D20: 10.81 | E20: 10.4 | F20: 8.42 | G20: 168.9 | H20: 0 | I20: 0 | J20: 38.45 | K20: 0.01 | L20: 1.79 | M20: 3 | N20: 43 | O20: 45.75 | P20: 35.13 | Q20: 109 | R20: 1.6 | S20: 0 | T20: 0 | U20: 0
A21: 54-4гн-2020 | B21: Чай с молоком и сахаром | C21: 200 | D21: 1.6 | E21: 1.1 | F21: 8.6 | G21: 50.9 | H21: 0.01 | I21: 0.07 | J21: 6.9 | K21: 0 | L21: 0.3 | M21: 19.68 | N21: 81.35 | O21: 103.48 | P21: 9.92 | Q21: 46.33 | R21: 0.78 | S21: 4.5 | T21: 0.88 | U21: 10
A22: Пром. | B22: Хлеб пшеничный | C22: 30 | D22: 2.3 | E22: 0.2 | F22: 14.8 | G22: 70.3 | H22: 0.03 | I22: 0.01 | J22: 0 | K22: 0 | L22: 0 | M22: 149.7 | N22: 27.9 | O22: 6 | P22: 4.2 | Q22: 19.5 | R22: 0.33 | S22: 0.96 | T22: 1.8 | U22: 4.35
A23: Пром. | B23: Хлеб ржаной | C23: 20 | D23: 1.3 | E23: 0.2 | F23: 6.7 | G23: 34.2 | H23: 0.04 | I23: 0.02 | J23: 0 | K23: 0 | L23: 0 | M23: 122 | N23: 49 | O23: 7 | P23: 9.4 | Q23: 31.6 | R23: 0.78 | S23: 0 | T23: 6.18 | U23: 0
B24: Итого за Завтрак | C24: 635 | D24: =SUM(D18:D23) -> 26.79 | E24: =SUM(E18:E23) -> 29.68 | F24: 88.79 | G24: 728.6 | H24: 0.38 | I24: 0.27 | J24: 801.27 | K24: 0.12 | L24: 4.09 | M24: 588.38 | N24: 634.25 | O24: 238.23 | P24: 224.65 | Q24: 455.43 | R24: 9.29 | S24: 49.17 | T24: 13.36 | U24: 69.57
B25: Итого за день | C25: =C24+C16 -> 810 | D25: 29.19 | E25: 29.98 | F25: 107.59 | G25: 815.6 | H25: 0.43 | I25: 0.29 | J25: 801.56 | K25: 0.12 | L25: 4.96 | M25: 710.33 | N25: 693.92 | O25: 294.48 | P25: 237.27 | Q25: 486.02 | R25: 10.45 | S25: 49.18 | T25: 13.38 | U25: 70.1
A27: 2 день, 1 неделя
A28: № рецептуры | B28: Прием пищи, наименование блюда | C28: Масса | D28: Пищевые вещества | G28: Энергетическая ценность | H28: Витамины | M28: Минеральные вещества
D29: Белки | E29: Жиры | F29: Углеводы | H29: B1 | I29: B2 | J29: A | K29: D | L29: C | M29: Na | N29: K | O29: Ca | P29: Mg | Q29: P | R29: Fe | S29: I | T29: Se | U29: F
C30: г | D30: г | E30: г | F30: г | G30: ккал | H30: мг | I30: мг | J30: мкг рет.экв | K30: мкг | L30: мг | M30: мг | N30: мг | O30: мг | P30: мг | Q30: мг | R30: мг | S30: мкг | T30: мкг | U30: мкг
B31: Вторник, 1 неделя
B32: Буфет | C32: 11-18
A33: 54-13к-2020 | B33: Каша вязкая молочная пшеничная | C33: 150 | D33: 6.1 | E33: 6.9 | F33: 29 | G33: 202.7 | H33: 0.1 | I33: 0.13 | J33: 30.74 | K33: 0.1 | L33: 0.41 | M33: 256.57 | N33: 169.91 | O33: 113.68 | P33: 29.4 | Q33: 154.74 | R33: 1.64 | S33: 37.16 | T33: 24.8 | U33: 16.11
A34: 54-1гн-2020 | B34: Чай без сахара | C34: 150 | D34: 0.1 | E34: 0 | F34: 0 | G34: 1.1 | H34: 0 | I34: 0.01 | J34: 0.23 | K34: 0 | L34: 0.03 | M34: 0.47 | N34: 15.44 | O34: 49.47 | P34: 2.87 | Q34: 5.38 | R34: 0.54 | S34: 0 | T34: 0 | U34: 0
B35: Итого за буфет | C35: 300 | D35: 6.2 | E35: 6.9 | F35: 29 | G35: 203.8 | H35: 0.1 | I35: 0.14 | J35: 30.97 | K35: 0.1 | L35: 0.44 | M35: 257.04 | N35: 185.35 | O35: 163.15 | P35: 32.27 | Q35: 160.12 | R35: 2.18 | S35: 37.16 | T35: 24.8 | U35: 16.11
B36: Горячий завтрак | C36: 11-18
A37: 54-7з | B37: Салат из белокочанной капусты с растительным маслом | C37: 100 | D37: 2.52 | E37: 10.15 | F37: 10.39 | G37: 143 | H37: 0.03 | I37: 0.05 | J37: 122.25 | K37: 0 | L37: 23 | M37: 112 | N37: 343 | O37: 59 | P37: 21 | Q37: 44 | R37: 0.9 | S37: 17.88 | T37: 0.3 | U37: 21.1
A38: 100 | B38: Суп картофельный с вермишелью | C38: 250 | D38: 2.8 | E38: 2.8 | F38: 20.2 | G38: 118 | H38: 0.1 | I38: 0 | J38: 0.2 | K38: 0 | L38: 6.6 | M38: 0 | N38: 0 | O38: 23.9 | P38: 23.4 | Q38: 57.7 | R38: 1.1 | S38: 0 | T38: 0 | U38: 0
A39: 54-21гн-2020 | B39: Какао с молоком | C39: 200 | D39: 4.7 | E39: 3.5 | F39: 12.5 | G39: 100.4 | H39: 0.04 | I39: 0.16 | J39: 17.25 | K39: 0 | L39: 0.68 | M39: 49.95 | N39: 220.33 | O39: 167.68 | P39: 34.32 | Q39: 130.28 | R39: 1.09 | S39: 11.7 | T39: 2.29 | U39: 38.25
A40: Пром. | B40: Хлеб пшеничный | C40: 30 | D40: 2.3 | E40: 0.2 | F40: 14.8 | G40: 70.3 | H40: 0.03 | I40: 0.01 | J40: 0 | K40: 0 | L40: 0 | M40: 149.7 | N40: 27.9 | O40: 6 | P40: 4.2 | Q40: 19.5 | R40: 0.33 | S40: 0.96 | T40: 1.8 | U40: 4.35
A41: Пром. | B41: Хлеб ржаной | C41: 20 | D41: 1.3 | E41: 0.2 | F41: 6.7 | G41: 34.2 | H41: 0.04 | I41: 0.02 | J41: 0 | K41: 0 | L41: 0 | M41: 122 | N41: 49 | O41: 7 | P41: 9.4 | Q41: 31.6 | R41: 0.78 | S41: 0 | T41: 6.18 | U41: 0
B42: Итого за Завтрак | C42: =SUM(C37:C41) -> 600 | D42: =SUM(D37:D41) -> 13.62 | E42: =SUM(E37:E41) -> 16.85 | F42: 64.59 | G42: 465.9 | H42: 0.24 | I42: 0.24 | J42: 139.7 | K42: 0 | L42: 30.28 | M42: 433.65 | N42: 640.23 | O42: 263.58 | P42: 92.32 | Q42: 283.08 | R42: 4.2 | S42: 30.54 | T42: 10.57 | U42: 63.7
B43: Итого за день | C43: =C42+C35 -> 900 | D43: 19.82 | E43: 23.75 | F43: 93.59 | G43: 669.7 | H43: 0.34 | I43: 0.38 | J43: 170.67 | K43: 0.1 | L43: 30.72 | M43: 690.69 | N43: 825.58 | O43: 426.73 | P43: 124.59 | Q43: 443.2 | R43: 6.38 | S43: 67.7 | T43: 35.37 | U43: 79.81
A45: 3 день, 1 неделя
A46: № рецептуры | B46: Прием пищи, наименование блюда | C46: Масса | D46: Пищевые вещества | G46: Энергетическая ценность | H46: Витамины | M46: Минеральные вещества
D47: Белки | E47: Жиры | F47: Углеводы | H47: B1 | I47: B2 | J47: A | K47: D | L47: C | M47: Na | N47: K | O47: Ca | P47: Mg | Q47: P | R47: Fe | S47: I | T47: Se | U47: F
C48: г | D48: г | E48: г | F48: г | G48: ккал | H48: мг | I48: мг | J48: мкг рет.экв | K48: мкг | L48: мг | M48: мг | N48: мг | O48: мг | P48: мг | Q48: мг | R48: мг | S48: мкг | T48: мкг | U48: мкг
B49: Среда, 1 неделя
B50: Буфет | C50: 11-18
A51: 54-4гн-2020 | B51: Чай с молоком и сахаром | C51: 150 | D51: 1.2 | E51: 0.9 | F51: 6.5 | G51: 38.2 | H51: 0.01 | I51: 0.05 | J51: 5.18 | K51: 0 | L51: 0.23 | M51: 14.76 | N51: 61.01 | O51: 77.61 | P51: 7.44 | Q51: 34.75 | R51: 0.58 | S51: 3.38 | T51: 0.66 | U51: 7.5
A52: Пром. | B52: Сушка простая | C52: 10 | D52: 1.09 | E52: 0.13 | F52: 6.88 | G52: 33.1 | H52: 0.02 | I52: 0.01 | J52: 0 | K52: 0 | L52: 0 | M52: 46 | N52: 15 | O52: 3 | P52: 4 | Q52: 11 | R52: 0.3 | S52: 0 | T52: 0 | U52: 0
B53: Итого за буфет | C53: 170 | D53: 3.4 | E53: 1.2 | F53: 20.3 | G53: 104.3 | H53: 0.06 | I53: 0.06 | J53: 5.18 | K53: 0 | L53: 0.23 | M53: 135.76 | N53: 98.01 | O53: 83.61 | P53: 16.64 | Q53: 58.95 | R53: 1.16 | S53: 3.38 | T53: 0.66 | U53: 7.5
B54: Горячий завтрак | C54: 11-18
A55: 54-13з | B55: Салат из свеклы отварной с растительным маслом | C55: 100 | D55: 1.34 | E55: 4.48 | F55: 7.61 | G55: 76.1 | H55: 0.01 | I55: 0.03 | J55: 1.14 | K55: 0 | L55: 4 | M55: 131 | N55: 227 | O55: 32 | P55: 18 | Q55: 36 | R55: 1.2 | S55: 19.98 | T55: 0.6 | U55: 19
A56: 54-1г-2020 | B56: Макароны отварные | C56: 180 | D56: 6.39 | E56: 5.91 | F56: 39.36 | G56: 236.2 | H56: 0.07 | I56: 0.03 | J56: 22.03 | K56: 0.11 | L56: 0 | M56: 179 | N56: 64 | O56: 127 | P56: 9 | Q56: 48 | R56: 0.9 | S56: 24.92 | T56: 0.1 | U56: 14.31
A57: №243 | B57: Сосиски говяжьи отварные, п/ф (2 шт) | C57: 100 | D57: 13.2 | E57: 22.84 | F57: 1.8 | G57: 247.15 | H57: 0 | I57: 0 | J57: 0.08 | K57: 0.01 | L57: 0 | M57: 0 | N57: 0 | O57: 7.44 | P57: 15.51 | Q57: 137.39 | R57: 1.74 | S57: 0 | T57: 0 | U57: 0
A58: 54-3гн-2020 | B58: Чай с лимоном и сахаром | C58: 207 | D58: 0.2 | E58: 0.1 | F58: 6.6 | G58: 27.9 | H58: 0 | I58: 0.01 | J58: 0.38 | K58: 0 | L58: 1.16 | M58: 1.26 | N58: 30.23 | O58: 67 | P58: 4.56 | Q58: 8.52 | R58: 0.77 | S58: 0.01 | T58: 0.02 | U58: 0.7
A59: Пром. | B59: Хлеб ржаной | C59: 20 | D59: 1.3 | E59: 0.2 | F59: 6.7 | G59: 34.2 | H59: 0.04 | I59: 0.02 | J59: 0 | K59: 0 | L59: 0 | M59: 122 | N59: 49 | O59: 7 | P59: 9.4 | Q59: 31.6 | R59: 0.78 | S59: 0 | T59: 6.18 | U59: 0
A60: Пром. | B60: Хлеб пшеничный | C60: 30 | D60: 2.3 | E60: 0.2 | F60: 14.8 | G60: 70.3 | H60: 0.03 | I60: 0.01 | J60: 0 | K60: 0 | L60: 0 | M60: 149.7 | N60: 27.9 | O60: 6 | P60: 4.2 | Q60: 19.5 | R60: 0.33 | S60: 0.96 | T60: 1.8 | U60: 4.35
B61: Итого за Завтрак | C61: =SUM(C55:C60) -> 637 | D61: =SUM(D55:D60) -> 24.73 | E61: =SUM(E55:E60) -> 33.73 | F61: 76.87 | G61: 691.85 | H61: 0.15 | I61: 0.1 | J61: 23.63 | K61: 0.12 | L61: 5.16 | M61: 582.96 | N61: 398.13 | O61: 246.44 | P61: 60.67 | Q61: 281.01 | R61: 5.72 | S61: 45.87 | T61: 8.7 | U61: 38.36
B62: Итого за день | C62: =C61+C53 -> 807 | D62: 28.13 | E62: 34.93 | F62: 97.17 | G62: 796.15 | H62: 0.21 | I62: 0.16 | J62: 28.81 | K62: 0.12 | L62: 5.39 | M62: 718.72 | N62: 496.14 | O62: 330.05 | P62: 77.31 | Q62: 339.96 | R62: 6.88 | S62: 49.25 | T62: 9.36 | U62: 45.86
A64: 4 день, 1 неделя
A65: № рецептуры | B65: Прием пищи, наименование блюда | C65: Масса | D65: Пищевые вещества | G65: Энергетическая ценность | H65: Витамины | M65: Минеральные вещества
D66: Белки | E66: Жиры | F66: Углеводы | H66: B1 | I66: B2 | J66: A | K66: D | L66: C | M66: Na | N66: K | O66: Ca | P66: Mg | Q66: P | R66: Fe | S66: I | T66: Se | U66: F
C67: г | D67: г | E67: г | F67: г | G67: ккал | H67: мг | I67: мг | J67: мкг рет.экв | K67: мкг | L67: мг | M67: мг | N67: мг | O67: мг | P67: мг | Q67: мг | R67: мг | S67: мкг | T67: мкг | U67: мкг
B68: Четверг, 1 неделя
B69: Буфет | C69: 11-18
A70: 54-6к-2020 | B70: Каша вязкая молочная пшенная | C70: 150 | D70: 6.2 | E70: 7.6 | F70: 28.2 | G70: 206.2 | H70: 0.14 | I70: 0.11 | J70: 31.22 | K70: 0.1 | L70: 0.41 | M70: 254.01 | N70: 162.17 | O70: 107.34 | P70: 36.72 | Q70: 139.54 | R70: 0.99 | S70: 38.71 | T70: 2.33 | U70: 26.31
A71: 54-1гн-2020 | B71: Чай без сахара | C71: 150 | D71: 0.1 | E71: 0 | F71: 0 | G71: 1.1 | H71: 0 | I71: 0.01 | J71: 0.23 | K71: 0 | L71: 0.03 | M71: 0.47 | N71: 15.44 | O71: 49.47 | P71: 2.87 | Q71: 5.38 | R71: 0.54 | S71: 0 | T71: 0 | U71: 0
B72: Итого за буфет | C72: 300 | D72: 6.3 | E72: 7.6 | F72: 28.2 | G72: 207.3 | H72: 0.14 | I72: 0.12 | J72: 31.45 | K72: 0.1 | L72: 0.44 | M72: 254.48 | N72: 177.61 | O72: 156.81 | P72: 39.59 | Q72: 144.92 | R72: 1.53 | S72: 38.71 | T72: 2.33 | U72: 26.31
B73: Горячий завтрак | C73: 11-18
A74: 54-9з-2020 | B74: Салат из белокочанной капусты с морковью, яблоками и растительным маслом | C74: 100 | D74: 1.37 | E74: 10.15 | F74: 6.03 | G74: 120.9 | H74: 0.02 | I74: 0.03 | J74: 241.63 | K74: 0 | L74: 11 | M74: 111 | N74: 221 | O74: 35 | P74: 17 | Q74: 27 | R74: 0.8 | S74: 16.44 | T74: 0.3 | U74: 18.3
A75: 54-11г-2020 | B75: Картофельное пюре | C75: 180 | D75: 3.69 | E75: 6.37 | F75: 23.79 | G75: 167.3 | H75: 0.14 | I75: 0.12 | J75: 28.55 | K75: 0.11 | L75: 12 | M75: 195 | N75: 750 | O75: 47 | P75: 34 | Q75: 101 | R75: 1.2 | S75: 34.15 | T75: 1 | U75: 51.35
A76: № рец. 290 | B76: Птица тушеная в соусе | C76: 50/50 | D76: 13.8 | E76: 14.8 | F76: 3.9 | G76: 211 | H76: 0.1 | I76: 0 | J76: 0 | K76: 0 | L76: 1.5 | M76: 0 | N76: 0 | O76: 26.4 | P76: 16.6 | Q76: 115.3 | R76: 0.9 | S76: 0 | T76: 0 | U76: 0
A77: 54-2гн-2020 | B77: Кофейный напиток с молоком | C77: 200 | D77: 3.9 | E77: 2.9 | F77: 11.2 | G77: 86 | H77: 0.03 | I77: 0.13 | J77: 13.29 | K77: 0 | L77: 0.52 | M77: 38.55 | N77: 183.98 | O77: 148.32 | P77: 30.67 | Q77: 106.79 | R77: 1.06 | S77: 9 | T77: 1.76 | U77: 20
A78: Пром. | B78: Хлеб ржаной | C78: 20 | D78: 1.3 | E78: 0.2 | F78: 6.7 | G78: 34.2 | H78: 0.04 | I78: 0.02 | J78: 0 | K78: 0 | L78: 0 | M78: 122 | N78: 49 | O78: 7 | P78: 9.4 | Q78: 31.6 | R78: 0.78 | S78: 0 | T78: 6.18 | U78: 0
A79: Пром. | B79: Хлеб пшеничный | C79: 30 | D79: 2.3 | E79: 0.2 | F79: 14.8 | G79: 70.3 | H79: 0.03 | I79: 0.01 | J79: 0 | K79: 0 | L79: 0 | M79: 149.7 | N79: 27.9 | O79: 6 | P79: 4.2 | Q79: 19.5 | R79: 0.33 | S79: 0.96 | T79: 1.8 | U79: 4.35
B80: Итого за Завтрак | C80: 630 | D80: =SUM(D74:D79) -> 26.36 | E80: =SUM(E74:E79) -> 34.62 | F80: 66.42 | G80: 689.7 | H80: 0.36 | I80: 0.31 | J80: 283.47 | K80: 0.11 | L80: 25.02 | M80: 616.25 | N80: 1231.88 | O80: 269.72 | P80: 111.87 | Q80: 401.19 | R80: 5.07 | S80: 60.55 | T80: 11.04 | U80: 94
B81: Итого за день | C81: =C80+C72 -> 930 | D81: =D80+D72 -> 32.66 | E81: 42.22 | F81: 94.62 | G81: 897 | H81: 0.5 | I81: 0.43 | J81: 314.92 | K81: 0.21 | L81: 25.46 | M81: 870.73 | N81: 1409.49 | O81: 426.53 | P81: 151.46 | Q81: 546.11 | R81: 6.6 | S81: 99.26 | T81: 13.37 | U81: 120.31
A83: 5 день, 1 неделя
A84: № рецептуры | B84: Прием пищи, наименование блюда | C84: Масса | D84: Пищевые вещества | G84: Энергетическая ценность | H84: Витамины | M84: Минеральные вещества
D85: Белки | E85: Жиры | F85: Углеводы | H85: B1 | I85: B2 | J85: A | K85: D | L85: C | M85: Na | N85: K | O85: Ca | P85: Mg | Q85: P | R85: Fe | S85: I | T85: Se | U85: F
C86: г | D86: г | E86: г | F86: г | G86: ккал | H86: мг | I86: мг | J86: мкг рет.экв | K86: мкг | L86: мг | M86: мг | N86: мг | O86: мг | P86: мг | Q86: мг | R86: мг | S86: мкг | T86: мкг | U86: мкг
B87: Пятница, 1 неделя
B88: Буфет | C88: 11-18
A89: 54-1г-2020 | B89: Макароны отварные | C89: 150 | D89: 5.3 | E89: 4.9 | F89: 32.8 | G89: 196.8 | H89: 0.06 | I89: 0.02 | J89: 18.36 | K89: 0.09 | L89: 0 | M89: 149.04 | N89: 53.8 | O89: 105.83 | P89: 7.19 | Q89: 40.7 | R89: 0.73 | S89: 20.77 | T89: 0.06 | U89: 11.92
A90: 54-2гн-2020 | B90: Чай с сахаром | C90: 150 | D90: 0.1 | E90: 0 | F90: 4.8 | G90: 20.1 | H90: 0 | I90: 0.01 | J90: 0.23 | K90: 0 | L90: 0.03 | M90: 0.51 | N90: 15.57 | O90: 49.56 | P90: 2.87 | Q90: 5.38 | R90: 0.55 | S90: 0 | T90: 0 | U90: 0
B91: Итого за буфет | C91: 300 | D91: 5.4 | E91: 4.9 | F91: 37.6 | G91: 216.9 | H91: 0.06 | I91: 0.03 | J91: 18.59 | K91: 0.09 | L91: 0.03 | M91: 149.55 | N91: 69.37 | O91: 155.39 | P91: 10.06 | Q91: 46.08 | R91: 1.28 | S91: 20.77 | T91: 0.06 | U91: 11.92
B92: Горячий завтрак | C92: 11-18
A93: 54-11з-2020 | B93: Салат из моркови с яблоками с растительным маслом | C93: 100 | D93: 0.91 | E93: 10.17 | F93: 7.15 | G93: 123.8 | H93: 0.04 | I93: 0.03 | J93: 732.9 | K93: 0 | L93: 2 | M93: 114 | N93: 170 | O93: 19 | P93: 22 | Q93: 32 | R93: 1 | S93: 16.98 | T93: 0.2 | U93: 35.95
A94: 54-6г-2020 | B94: Плов из говядины | C94: 180/40 | D94: 16.86 | E94: 16.22 | F94: 42.44 | G94: 383.1 | H94: 0.07 | I94: 0.13 | J94: 287.76 | K94: 0.11 | L94: 0 | M94: 304 | N94: 295 | O94: 128 | P94: 48 | Q94: 213 | R94: 2.4 | S94: 42.53 | T94: 8.1 | U94: 89.91
A95: 54-4гн-2020 | B95: Компот из кураги | C95: 200 | D95: 0.98 | E95: 0.05 | F95: 15.64 | G95: 66.9 | H95: 0.01 | I95: 0.03 | J95: 69.96 | K95: 0 | L95: 0 | M95: 3 | N95: 285 | O95: 90 | P95: 18 | Q95: 25 | R95: 0.6 | S95: 0 | T95: 0 | U95: 0
A96: Пром. | B96: Хлеб ржаной | C96: 20 | D96: 1.3 | E96: 0.2 | F96: 6.7 | G96: 34.2 | H96: 0.04 | I96: 0.02 | J96: 0 | K96: 0 | L96: 0 | M96: 122 | N96: 49 | O96: 7 | P96: 9.4 | Q96: 31.6 | R96: 0.78 | S96: 0 | T96: 6.18 | U96: 0
A97: Пром. | B97: Хлеб пшеничный | C97: 30 | D97: 2.3 | E97: 0.2 | F97: 14.8 | G97: 70.3 | H97: 0.03 | I97: 0.01 | J97: 0 | K97: 0 | L97: 0 | M97: 149.7 | N97: 27.9 | O97: 6 | P97: 4.2 | Q97: 19.5 | R97: 0.33 | S97: 0.96 | T97: 1.8 | U97: 4.35
B98: Итого за Завтрак | C98: 570 | D98: =SUM(D93:D97) -> 22.35 | E98: =SUM(E93:E97) -> 26.84 | F98: 86.73 | G98: 678.3 | H98: 0.19 | I98: 0.22 | J98: 1090.62 | K98: 0.11 | L98: 2 | M98: 692.7 | N98: 826.9 | O98: 250 | P98: 101.6 | Q98: 321.1 | R98: 5.11 | S98: 60.47 | T98: 16.28 | U98: 130.21
B99: Итого за день | C99: =C98+C91 -> 870 | D99: 27.75 | E99: 31.74 | F99: 124.33 | G99: 895.2 | H99: 0.25 | I99: 0.25 | J99: 1109.21 | K99: 0.2 | L99: 2.03 | M99: 842.25 | N99: 896.27 | O99: 405.39 | P99: 111.66 | Q99: 367.18 | R99: 6.39 | S99: 81.24 | T99: 16.34 | U99: 142.13
A101: 6 день, 1 неделя
A102: № рецептуры | B102: Прием пищи, наименование блюда | C102: Масса | D102: Пищевые вещества | G102: Энергетическая ценность | H102: Витамины | M102: Минеральные вещества
D103: Белки | E103: Жиры | F103: Углеводы | H103: B1 | I103: B2 | J103: A | K103: D | L103: C | M103: Na | N103: K | O103: Ca | P103: Mg | Q103: P | R103: Fe | S103: I | T103: Se | U103: F
C104: г | D104: г | E104: г | F104: г | G104: ккал | H104: мг | I104: мг | J104: мкг рет.экв | K104: мкг | L104: мг | M104: мг | N104: мг | O104: мг | P104: мг | Q104: мг | R104: мг | S104: мкг | T104: мкг | U104: мкг
B105: Суббота, 1 неделя
B106: Буфет | C106: 11-18
A107: 54-3гн-2020 | B107: Чай с лимоном и сахаром | C107: 155 | D107: 0.2 | E107: 0 | F107: 5 | G107: 20.9 | H107: 0 | I107: 0.01 | J107: 0.29 | K107: 0 | L107: 0.87 | M107: 0.95 | N107: 22.67 | O107: 50.25 | P107: 3.42 | Q107: 6.39 | R107: 0.58 | S107: 0.01 | T107: 0.02 | U107: 0.53
A108: Пром. | B108: Сушка простая | C108: 10 | D108: 1.09 | E108: 0.13 | F108: 6.88 | G108: 33.1 | H108: 0.02 | I108: 0.01 | J108: 0 | K108: 0 | L108: 0 | M108: 46 | N108: 15 | O108: 3 | P108: 4 | Q108: 11 | R108: 0.3 | S108: 0 | T108: 0 | U108: 0
B109: Итого за буфет | C109: 175 | D109: 2.4 | E109: 0.3 | F109: 18.8 | G109: 87 | H109: 0.05 | I109: 0.02 | J109: 0.29 | K109: 0 | L109: 0.87 | M109: 121.95 | N109: 59.67 | O109: 56.25 | P109: 12.62 | Q109: 30.59 | R109: 1.16 | S109: 0.01 | T109: 0.02 | U109: 0.53
B110: Итого за день | C110: =C109+C100 -> 175 | D110: =D109 -> 2.4 | E110: =E109 -> 0.3 | F110: 18.8 | G110: 87 | H110: 0.05 | I110: 0.02 | J110: 0.29 | K110: 0 | L110: 0.87 | M110: 121.95 | N110: 59.67 | O110: 56.25 | P110: 12.62 | Q110: 30.59 | R110: 1.16 | S110: 0.01 | T110: 0.02 | U110: 0.53
A112: 7 день, 2 неделя
A113: № рецептуры | B113: Прием пищи, наименование блюда | C113: Масса | D113: Пищевые вещества | G113: Энергетическая ценность | H113: Витамины | M113: Минеральные вещества
D114: Белки | E114: Жиры | F114: Углеводы | H114: B1 | I114: B2 | J114: A | K114: D | L114: C | M114: Na | N114: K | O114: Ca | P114: Mg | Q114: P | R114: Fe | S114: I | T114: Se | U114: F
C115: г | D115: г | E115: г | F115: г | G115: ккал | H115: мг | I115: мг | J115: мкг рет.экв | K115: мкг | L115: мг | M115: мг | N115: мг | O115: мг | P115: мг | Q115: мг | R115: мг | S115: мкг | T115: мкг | U115: мкг
B116: Понедельник, 2 неделя
B117: Буфет | C117: 11-18
A118: 54-21гн-2020 | B118: Какао с молоком | C118: 150 | D118: 3.5 | E118: 2.6 | F118: 9.4 | G118: 75.3 | H118: 0.03 | I118: 0.12 | J118: 12.94 | K118: 0 | L118: 0.51 | M118: 37.46 | N118: 165.25 | O118: 125.76 | P118: 25.74 | Q118: 97.71 | R118: 0.82 | S118: 8.78 | T118: 1.72 | U118: 28.69
A119: Пром. | B119: Сушка простая | C119: 10 | D119: 1.09 | E119: 0.13 | F119: 6.88 | G119: 33.1 | H119: 0.02 | I119: 0.01 | J119: 0 | K119: 0 | L119: 0 | M119: 46 | N119: 15 | O119: 3 | P119: 4 | Q119: 11 | R119: 0.3 | S119: 0 | T119: 0 | U119: 0
B120: Итого за буфет | C120: 170 | D120: 5.7 | E120: 2.9 | F120: 23.2 | G120: 141.4 | H120: 0.08 | I120: 0.13 | J120: 12.94 | K120: 0 | L120: 0.51 | M120: 158.46 | N120: 202.25 | O120: 131.76 | P120: 34.94 | Q120: 121.91 | R120: 1.4 | S120: 8.78 | T120: 1.72 | U120: 28.69
B121: Горячий завтрак | C121: 11-18
A122: 54-11з-2020 | B122: Салат из моркови с яблоками с растительным маслом | C122: 100 | D122: 0.91 | E122: 10.17 | F122: 7.15 | G122: 123.8 | H122: 0.04 | I122: 0.03 | J122: 732.9 | K122: 0 | L122: 2 | M122: 114 | N122: 170 | O122: 19 | P122: 22 | Q122: 32 | R122: 1 | S122: 16.98 | T122: 0.2 | U122: 35.95
A123: 62 | B123: Борщ | C123: 250 | D123: 3.1 | E123: 7.3 | F123: 16.5 | G123: 151.1 | H123: 0.1 | I123: 0 | J123: 0.3 | K123: 0 | L123: 12 | M123: 0 | N123: 0 | O123: 55 | P123: 33.4 | Q123: 72.4 | R123: 1.6 | S123: 0 | T123: 0 | U123: 0
A124: 54-2гн-2020 | B124: Чай с сахаром | C124: 200 | D124: 0.2 | E124: 0 | F124: 6.4 | G124: 26.8 | H124: 0 | I124: 0.01 | J124: 0.3 | K124: 0 | L124: 0.04 | M124: 0.68 | N124: 20.76 | O124: 66.08 | P124: 3.83 | Q124: 7.18 | R124: 0.73 | S124: 0 | T124: 0 | U124: 0
A125: Пром. | B125: Хлеб пшеничный | C125: 30 | D125: 2.3 | E125: 0.2 | F125: 14.8 | G125: 70.3 | H125: 0.03 | I125: 0.01 | J125: 0 | K125: 0 | L125: 0 | M125: 149.7 | N125: 27.9 | O125: 6 | P125: 4.2 | Q125: 19.5 | R125: 0.33 | S125: 0.96 | T125: 1.8 | U125: 4.35
A126: Пром. | B126: Хлеб ржаной | C126: 20 | D126: 1.3 | E126: 0.2 | F126: 6.7 | G126: 34.2 | H126: 0.04 | I126: 0.02 | J126: 0 | K126: 0 | L126: 0 | M126: 122 | N126: 49 | O126: 7 | P126: 9.4 | Q126: 31.6 | R126: 0.78 | S126: 0 | T126: 6.18 | U126: 0
B127: Итого за Завтрак | C127: =SUM(C122:C126) -> 600 | D127: =SUM(D122:D126) -> 7.81 | E127: =SUM(E122:E126) -> 17.87 | F127: 51.55 | G127: 406.2 | H127: 0.21 | I127: 0.07 | J127: 733.5 | K127: 0 | L127: 14.04 | M127: 386.38 | N127: 267.66 | O127: 153.08 | P127: 72.83 | Q127: 162.68 | R127: 4.44 | S127: 17.94 | T127: 8.18 | U127: 40.3
B128: Итого за день | C128: =C127+C120 -> 770 | D128: 13.51 | E128: 20.77 | F128: 74.75 | G128: 547.6 | H128: 0.29 | I128: 0.2 | J128: 746.44 | K128: 0 | L128: 14.55 | M128: 544.84 | N128: 469.91 | O128: 284.84 | P128: 107.77 | Q128: 284.59 | R128: 5.84 | S128: 26.72 | T128: 9.9 | U128: 68.99
A130: 8 день, 2 неделя
A131: № рецептуры | B131: Прием пищи, наименование блюда | C131: Масса | D131: Пищевые вещества | G131: Энергетическая ценность | H131: Витамины | M131: Минеральные вещества
D132: Белки | E132: Жиры | F132: Углеводы | H132: B1 | I132: B2 | J132: A | K132: D | L132: C | M132: Na | N132: K | O132: Ca | P132: Mg | Q132: P | R132: Fe | S132: I | T132: Se | U132: F
C133: г | D133: г | E133: г | F133: г | G133: ккал | H133: мг | I133: мг | J133: мкг рет.экв | K133: мкг | L133: мг | M133: мг | N133: мг | O133: мг | P133: мг | Q133: мг | R133: мг | S133: мкг | T133: мкг | U133: мкг
B134: Вторник, 2 неделя
B135: Буфет | C135: 11-18
A136: 54-13к-2020 | B136: Каша вязкая молочная пшеничная | C136: 150 | D136: 6.1 | E136: 6.9 | F136: 29 | G136: 202.7 | H136: 0.1 | I136: 0.13 | J136: 30.74 | K136: 0.1 | L136: 0.41 | M136: 256.57 | N136: 169.91 | O136: 113.68 | P136: 29.4 | Q136: 154.74 | R136: 1.64 | S136: 37.16 | T136: 24.8 | U136: 16.11
A137: 54-1гн-2020 | B137: Чай без сахара | C137: 150 | D137: 0.1 | E137: 0 | F137: 0 | G137: 1.1 | H137: 0 | I137: 0.01 | J137: 0.23 | K137: 0 | L137: 0.03 | M137: 0.47 | N137: 15.44 | O137: 49.47 | P137: 2.87 | Q137: 5.38 | R137: 0.54 | S137: 0 | T137: 0 | U137: 0
B138: Итого за буфет | C138: 300 | D138: 6.2 | E138: 6.9 | F138: 29 | G138: 203.8 | H138: 0.1 | I138: 0.14 | J138: 30.97 | K138: 0.1 | L138: 0.44 | M138: 257.04 | N138: 185.35 | O138: 163.15 | P138: 32.27 | Q138: 160.12 | R138: 2.18 | S138: 37.16 | T138: 24.8 | U138: 16.11
B139: Горячий завтрак | C139: 11-18
A140: 54-13з | B140: Салат из свеклы отварной с растительным маслом | C140: 100 | D140: 1.34 | E140: 4.48 | F140: 7.61 | G140: 76.1 | H140: 0.01 | I140: 0.03 | J140: 1.14 | K140: 0 | L140: 4 | M140: 131 | N140: 227 | O140: 32 | P140: 18 | Q140: 36 | R140: 1.2 | S140: 19.98 | T140: 0.6 | U140: 19
A141: 54-12м-2020 | B141: Плов с курицей | C141: 170/50 | D141: 20.34 | E141: 8.18 | F141: 36.38 | G141: 300.4 | H141: 0.08 | I141: 0.07 | J141: 159.36 | K141: 0 | L141: 2 | M141: 301 | N141: 316 | O141: 80 | P141: 87 | Q141: 193 | R141: 1.7 | S141: 41.15 | T141: 21.6 | U141: 129.9
A142: 54-3гн-2020 | B142: Чай с лимоном и сахаром | C142: 207 | D142: 0.2 | E142: 0.1 | F142: 6.6 | G142: 27.9 | H142: 0 | I142: 0.01 | J142: 0.38 | K142: 0 | L142: 1.16 | M142: 1.26 | N142: 30.23 | O142: 67 | P142: 4.56 | Q142: 8.52 | R142: 0.77 | S142: 0.01 | T142: 0.02 | U142: 0.7
A143: Пром. | B143: Хлеб пшеничный | C143: 30 | D143: 2.3 | E143: 0.2 | F143: 14.8 | G143: 70.3 | H143: 0.03 | I143: 0.01 | J143: 0 | K143: 0 | L143: 0 | M143: 149.7 | N143: 27.9 | O143: 6 | P143: 4.2 | Q143: 19.5 | R143: 0.33 | S143: 0.96 | T143: 1.8 | U143: 4.35
A144: Пром. | B144: Хлеб ржаной | C144: 20 | D144: 1.3 | E144: 0.2 | F144: 6.7 | G144: 34.2 | H144: 0.04 | I144: 0.02 | J144: 0 | K144: 0 | L144: 0 | M144: 122 | N144: 49 | O144: 7 | P144: 9.4 | Q144: 31.6 | R144: 0.78 | S144: 0 | T144: 6.18 | U144: 0
B145: Итого за Завтрак | C145: 577 | D145: =SUM(D140:D144) -> 25.48 | E145: =SUM(E140:E144) -> 13.16 | F145: 72.09 | G145: 508.9 | H145: 0.16 | I145: 0.14 | J145: 160.88 | K145: 0 | L145: 7.16 | M145: 704.96 | N145: 650.13 | O145: 192 | P145: 123.16 | Q145: 288.62 | R145: 4.78 | S145: 62.1 | T145: 30.2 | U145: 153.95
B146: Итого за день | C146: =C145+C138 -> 877 | D146: 31.68 | E146: 20.06 | F146: 101.09 | G146: 712.7 | H146: 0.26 | I146: 0.28 | J146: 191.85 | K146: 0.1 | L146: 7.6 | M146: 962 | N146: 835.48 | O146: 355.15 | P146: 155.43 | Q146: 448.74 | R146: 6.96 | S146: 99.26 | T146: 55 | U146: 170.06
A148: 9 день, 2 неделя
A149: № рецептуры | B149: Прием пищи, наименование блюда | C149: Масса | D149: Пищевые вещества | G149: Энергетическая ценность | H149: Витамины | M149: Минеральные вещества
D150: Белки | E150: Жиры | F150: Углеводы | H150: B1 | I150: B2 | J150: A | K150: D | L150: C | M150: Na | N150: K | O150: Ca | P150: Mg | Q150: P | R150: Fe | S150: I | T150: Se | U150: F
C151: г | D151: г | E151: г | F151: г | G151: ккал | H151: мг | I151: мг | J151: мкг рет.экв | K151: мкг | L151: мг | M151: мг | N151: мг | O151: мг | P151: мг | Q151: мг | R151: мг | S151: мкг | T151: мкг | U151: мкг
B152: Среда, 2 неделя
B153: Буфет | C153: 11-18
A154: 54-2гн-2020 | B154: Чай с сахаром | C154: 150 | D154: 0.1 | E154: 0 | F154: 4.8 | G154: 20.1 | H154: 0 | I154: 0.01 | J154: 0.23 | K154: 0 | L154: 0.03 | M154: 0.51 | N154: 15.57 | O154: 49.56 | P154: 2.87 | Q154: 5.38 | R154: 0.55 | S154: 0 | T154: 0 | U154: 0
A155: Пром. | B155: Сушка простая | C155: 10 | D155: 1.09 | E155: 0.13 | F155: 6.88 | G155: 33.1 | H155: 0.02 | I155: 0.01 | J155: 0 | K155: 0 | L155: 0 | M155: 46 | N155: 15 | O155: 3 | P155: 4 | Q155: 11 | R155: 0.3 | S155: 0 | T155: 0 | U155: 0
B156: Итого за буфет | C156: 170 | D156: 2.3 | E156: 0.3 | F156: 18.6 | G156: 86.2 | H156: 0.05 | I156: 0.02 | J156: 0.23 | K156: 0 | L156: 0.03 | M156: 121.51 | N156: 52.57 | O156: 55.56 | P156: 12.07 | Q156: 29.58 | R156: 1.13 | S156: 0 | T156: 0 | U156: 0
B157: Горячий завтрак | C157: 11-18
A158: 54-16з-2020 | B158: Винегрет с растительным маслом | C158: 100 | D158: 1.17 | E158: 8.95 | F158: 6.67 | G158: 111.9 | H158: 0.03 | I158: 0.02 | J158: 121.48 | K158: 0 | L158: 5 | M158: 335 | N158: 214 | O158: 20 | P158: 16 | Q158: 36 | R158: 0.8 | S158: 13.1 | T158: 0.3 | U158: 19.75
A159: 54-11г-2020 | B159: Картофельное пюре | C159: 180 | D159: 3.69 | E159: 6.37 | F159: 23.79 | G159: 167.3 | H159: 0.14 | I159: 0.12 | J159: 28.55 | K159: 0.11 | L159: 12 | M159: 195 | N159: 750 | O159: 47 | P159: 34 | Q159: 101 | R159: 1.2 | S159: 34.15 | T159: 1 | U159: 51.35
A160: 54-7р-2020 | B160: Рыба припущенная в молоко | C160: 70/30 | D160: 13.09 | E160: 7.52 | F160: 2.89 | G160: 131.6 | H160: 0.08 | I160: 0.11 | J160: 9.02 | K160: 0.16 | L160: 1 | M160: 111 | N160: 347 | O160: 68 | P160: 44 | Q160: 202 | R160: 0.7 | S160: 133.48 | T160: 11.9 | U160: 572.6
A161: 54-21гн-2020 | B161: Какао с молоком | C161: 200 | D161: 4.7 | E161: 3.5 | F161: 12.5 | G161: 100.4 | H161: 0.04 | I161: 0.16 | J161: 17.25 | K161: 0 | L161: 0.68 | M161: 49.95 | N161: 220.33 | O161: 167.68 | P161: 34.32 | Q161: 130.28 | R161: 1.09 | S161: 11.7 | T161: 2.29 | U161: 38.25
A162: Пром. | B162: Хлеб пшеничный | C162: 30 | D162: 2.3 | E162: 0.2 | F162: 14.8 | G162: 70.3 | H162: 0.03 | I162: 0.01 | J162: 0 | K162: 0 | L162: 0 | M162: 149.7 | N162: 27.9 | O162: 6 | P162: 4.2 | Q162: 19.5 | R162: 0.33 | S162: 0.96 | T162: 1.8 | U162: 4.35
A163: Пром. | B163: Хлеб ржаной | C163: 20 | D163: 1.3 | E163: 0.2 | F163: 6.7 | G163: 34.2 | H163: 0.04 | I163: 0.02 | J163: 0 | K163: 0 | L163: 0 | M163: 122 | N163: 49 | O163: 7 | P163: 9.4 | Q163: 31.6 | R163: 0.78 | S163: 0 | T163: 6.18 | U163: 0
B164: Итого за Завтрак | C164: 630 | D164: =SUM(D158:D163) -> 26.25 | E164: 26.74 | F164: 67.35 | G164: 615.7 | H164: 0.36 | I164: 0.44 | J164: 176.3 | K164: 0.27 | L164: 18.68 | M164: 962.65 | N164: 1608.23 | O164: 315.68 | P164: 141.92 | Q164: 520.38 | R164: 4.9 | S164: 193.39 | T164: 23.47 | U164: 686.3
B165: Итого за день | C165: =C164+C156 -> 800 | D165: 28.55 | E165: 27.04 | F165: 85.95 | G165: 701.9 | H165: 0.41 | I165: 0.46 | J165: 176.53 | K165: 0.27 | L165: 18.71 | M165: 1084.16 | N165: 1660.8 | O165: 371.24 | P165: 153.99 | Q165: 549.96 | R165: 6.03 | S165: 193.39 | T165: 23.47 | U165: 686.3
A167: 10 день, 2 неделя
A168: № рецептуры | B168: Прием пищи, наименование блюда | C168: Масса | D168: Пищевые вещества | G168: Энергетическая ценность | H168: Витамины | M168: Минеральные вещества
D169: Белки | E169: Жиры | F169: Углеводы | H169: B1 | I169: B2 | J169: A | K169: D | L169: C | M169: Na | N169: K | O169: Ca | P169: Mg | Q169: P | R169: Fe | S169: I | T169: Se | U169: F
C170: г | D170: г | E170: г | F170: г | G170: ккал | H170: мг | I170: мг | J170: мкг рет.экв | K170: мкг | L170: мг | M170: мг | N170: мг | O170: мг | P170: мг | Q170: мг | R170: мг | S170: мкг | T170: мкг | U170: мкг
B171: Четверг, 2 неделя
B172: Буфет | C172: 11-18
A173: 54-6к-2020 | B173: Каша вязкая молочная пшенная | C173: 150 | D173: 6.2 | E173: 7.6 | F173: 28.2 | G173: 206.2 | H173: 0.14 | I173: 0.11 | J173: 31.22 | K173: 0.1 | L173: 0.41 | M173: 254.01 | N173: 162.17 | O173: 107.34 | P173: 36.72 | Q173: 139.54 | R173: 0.99 | S173: 38.71 | T173: 2.33 | U173: 26.31
A174: 54-3гн-2020 | B174: Чай с лимоном и сахаром | C174: 155 | D174: 0.2 | E174: 0 | F174: 5 | G174: 20.9 | H174: 0 | I174: 0.01 | J174: 0.29 | K174: 0 | L174: 0.87 | M174: 0.95 | N174: 22.67 | O174: 50.25 | P174: 3.42 | Q174: 6.39 | R174: 0.58 | S174: 0.01 | T174: 0.02 | U174: 0.53
B175: Итого за буфет | C175: 305 | D175: 6.4 | E175: 7.6 | F175: 33.2 | G175: 227.1 | H175: 0.14 | I175: 0.12 | J175: 31.51 | K175: 0.1 | L175: 1.28 | M175: 254.96 | N175: 184.84 | O175: 157.59 | P175: 40.14 | Q175: 145.93 | R175: 1.57 | S175: 38.72 | T175: 2.35 | U175: 26.84
B176: Горячий завтрак | C176: 11-18
A177: 54-7з | B177: Салат из белокочанной капусты с растительным маслом | C177: 100 | D177: 2.52 | E177: 10.15 | F177: 10.39 | G177: 143 | H177: 0.03 | I177: 0.05 | J177: 122.25 | K177: 0 | L177: 23 | M177: 112 | N177: 343 | O177: 59 | P177: 21 | Q177: 44 | R177: 0.9 | S177: 17.88 | T177: 0.3 | U177: 21.1
A178: 54-6г-2020 | B178: Рис отварной | C178: 180 | D178: 4.32 | E178: 5.78 | F178: 43.74 | G178: 244.2 | H178: 0.04 | I178: 0.03 | J178: 22.03 | K178: 0.11 | L178: 0 | M178: 184 | N178: 56 | O178: 129 | P178: 28 | Q178: 87 | R178: 0.6 | S178: 24.91 | T178: 8.7 | U178: 32.63
A179: 54-2м-2020 | B179: Гуляш из говядины | C179: 60/40 | D179: 13.76 | E179: 13.91 | F179: 3.9 | G179: 195.8 | H179: 0.04 | I179: 0.12 | J179: 25.46 | K179: 0.07 | L179: 1 | M179: 122 | N179: 322 | O179: 55 | P179: 23 | Q179: 166 | R179: 2.5 | S179: 17.06 | T179: 0.4 | U179: 62.71
A180: 54-21гн-2020 | B180: Кофейный напиток с молоком | C180: 200 | D180: 3.9 | E180: 2.9 | F180: 11.2 | G180: 86 | H180: 0.03 | I180: 0.13 | J180: 13.29 | K180: 0 | L180: 0.52 | M180: 38.55 | N180: 183.98 | O180: 148.32 | P180: 30.67 | Q180: 106.79 | R180: 1.06 | S180: 9 | T180: 1.76 | U180: 20
A181: Пром. | B181: Хлеб пшеничный | C181: 30 | D181: 2.3 | E181: 0.2 | F181: 14.8 | G181: 70.3 | H181: 0.03 | I181: 0.01 | J181: 0 | K181: 0 | L181: 0 | M181: 149.7 | N181: 27.9 | O181: 6 | P181: 4.2 | Q181: 19.5 | R181: 0.33 | S181: 0.96 | T181: 1.8 | U181: 4.35
A182: Пром. | B182: Хлеб ржаной | C182: 20 | D182: 1.3 | E182: 0.2 | F182: 6.7 | G182: 34.2 | H182: 0.04 | I182: 0.02 | J182: 0 | K182: 0 | L182: 0 | M182: 122 | N182: 49 | O182: 7 | P182: 9.4 | Q182: 31.6 | R182: 0.78 | S182: 0 | T182: 6.18 | U182: 0
B183: Итого за Завтрак | C183: 630 | D183: =SUM(D177:D182) -> 28.1 | E183: 33.14 | F183: 90.73 | G183: 773.5 | H183: 0.21 | I183: 0.36 | J183: 183.03 | K183: 0.18 | L183: 24.52 | M183: 728.25 | N183: 981.88 | O183: 404.32 | P183: 116.27 | Q183: 454.89 | R183: 6.17 | S183: 69.81 | T183: 19.14 | U183: 140.79
B184: Итого за день | C184: =C183+C175 -> 935 | D184: =D183+D175 -> 34.5 | E184: 40.74 | F184: 123.93 | G184: 1000.6 | H184: 0.35 | I184: 0.48 | J184: 214.54 | K184: 0.28 | L184: 25.8 | M184: 983.21 | N184: 1166.72 | O184: 561.91 | P184: 156.41 | Q184: 600.82 | R184: 7.74 | S184: 108.53 | T184: 21.49 | U184: 167.63
A186: 11 день, 2 неделя
A187: № рецептуры | B187: Прием пищи, наименование блюда | C187: Масса | D187: Пищевые вещества | G187: Энергетическая ценность | H187: Витамины | M187: Минеральные вещества
D188: Белки | E188: Жиры | F188: Углеводы | H188: B1 | I188: B2 | J188: A | K188: D | L188: C | M188: Na | N188: K | O188: Ca | P188: Mg | Q188: P | R188: Fe | S188: I | T188: Se | U188: F
C189: г | D189: г | E189: г | F189: г | G189: ккал | H189: мг | I189: мг | J189: мкг рет.экв | K189: мкг | L189: мг | M189: мг | N189: мг | O189: мг | P189: мг | Q189: мг | R189: мг | S189: мкг | T189: мкг | U189: мкг
B190: Пятница, 2 неделя
B191: Буфет | C191: 11-18
A192: 54-9к-2020 | B192: Каша вязкая молочная овсяная | C192: 150 | D192: 6.4 | E192: 8.4 | F192: 25.7 | G192: 204.6 | H192: 0.15 | I192: 0.13 | J192: 30.15 | K192: 0.1 | L192: 0.39 | M192: 259.99 | N192: 205.54 | O192: 118.23 | P192: 47.12 | Q192: 175.03 | R192: 1.38 | S192: 38.44 | T192: 10.92 | U192: 46.71
A193: 54-2гн-2020 | B193: Чай с сахаром | C193: 150 | D193: 0.1 | E193: 0 | F193: 4.8 | G193: 20.1 | H193: 0 | I193: 0.01 | J193: 0.23 | K193: 0 | L193: 0.03 | M193: 0.51 | N193: 15.57 | O193: 49.56 | P193: 2.87 | Q193: 5.38 | R193: 0.55 | S193: 0 | T193: 0 | U193: 0
B194: Итого за буфет | C194: 300 | D194: 6.5 | E194: 8.4 | F194: 30.5 | G194: 224.7 | H194: 0.15 | I194: 0.14 | J194: 30.38 | K194: 0.1 | L194: 0.42 | M194: 260.5 | N194: 221.11 | O194: 167.79 | P194: 49.99 | Q194: 180.41 | R194: 1.93 | S194: 38.44 | T194: 10.92 | U194: 46.71
B195: Горячий завтрак | C195: 11-18
A196: 54-13з | B196: Салат из свеклы отварной с растительным маслом | C196: 100 | D196: 1.34 | E196: 4.48 | F196: 7.61 | G196: 76.1 | H196: 0.01 | I196: 0.03 | J196: 1.14 | K196: 0 | L196: 4 | M196: 131 | N196: 227 | O196: 32 | P196: 18 | Q196: 36 | R196: 1.2 | S196: 19.98 | T196: 0.6 | U196: 19
A197: 54-1г-2020 | B197: Макароны отварные | C197: 180 | D197: 6.39 | E197: 5.91 | F197: 39.36 | G197: 236.2 | H197: 0.07 | I197: 0.03 | J197: 22.03 | K197: 0.11 | L197: 0 | M197: 179 | N197: 64 | O197: 127 | P197: 9 | Q197: 48 | R197: 0.9 | S197: 24.92 | T197: 0.1 | U197: 14.31
A198: ном.рец №174 | B198: Тефтели мясные из говядины, полуфабрикат в соусе | C198: 75/30 | D198: 10.81 | E198: 10.4 | F198: 8.42 | G198: 168.9 | H198: 0 | I198: 0 | J198: 38.45 | K198: 0.01 | L198: 1.79 | M198: 3 | N198: 43 | O198: 45.75 | P198: 35.13 | Q198: 109 | R198: 1.6 | S198: 0 | T198: 0 | U198: 0
A199: 54-4гн-2020 | B199: Компот из кураги | C199: 200 | D199: 0.98 | E199: 0.05 | F199: 15.64 | G199: 66.9 | H199: 0.01 | I199: 0.03 | J199: 69.96 | K199: 0 | L199: 0 | M199: 3 | N199: 285 | O199: 90 | P199: 18 | Q199: 25 | R199: 0.6 | S199: 0 | T199: 0 | U199: 0
A200: Пром. | B200: Хлеб ржаной | C200: 20 | D200: 1.3 | E200: 0.2 | F200: 6.7 | G200: 34.2 | H200: 0.04 | I200: 0.02 | J200: 0 | K200: 0 | L200: 0 | M200: 122 | N200: 49 | O200: 7 | P200: 9.4 | Q200: 31.6 | R200: 0.78 | S200: 0 | T200: 6.18 | U200: 0
A201: Пром. | B201: Хлеб пшеничный | C201: 30 | D201: 2.3 | E201: 0.2 | F201: 14.8 | G201: 70.3 | H201: 0.03 | I201: 0.01 | J201: 0 | K201: 0 | L201: 0 | M201: 149.7 | N201: 27.9 | O201: 6 | P201: 4.2 | Q201: 19.5 | R201: 0.33 | S201: 0.96 | T201: 1.8 | U201: 4.35
B202: Итого за Завтрак | C202: 595 | D202: =SUM(D196:D201) -> 23.12 | E202: 21.24 | F202: 92.53 | G202: 652.6 | H202: 0.16 | I202: 0.12 | J202: 131.58 | K202: 0.12 | L202: 5.79 | M202: 587.7 | N202: 695.9 | O202: 307.75 | P202: 93.73 | Q202: 269.1 | R202: 5.41 | S202: 45.86 | T202: 8.68 | U202: 37.66
B203: Итого за день | C203: =C202+C194 -> 895 | D203: 29.62 | E203: 29.64 | F203: 123.03 | G203: 877.3 | H203: 0.31 | I203: 0.26 | J203: 161.96 | K203: 0.22 | L203: 6.21 | M203: 848.2 | N203: 917.01 | O203: 475.54 | P203: 143.72 | Q203: 449.51 | R203: 7.34 | S203: 84.3 | T203: 19.6 | U203: 84.37
A205: 12 день, 2 неделя
A206: № рецептуры | B206: Прием пищи, наименование блюда | C206: Масса | D206: Пищевые вещества | G206: Энергетическая ценность | H206: Витамины | M206: Минеральные вещества
D207: Белки | E207: Жиры | F207: Углеводы | H207: B1 | I207: B2 | J207: A | K207: D | L207: C | M207: Na | N207: K | O207: Ca | P207: Mg | Q207: P | R207: Fe | S207: I | T207: Se | U207: F
C208: г | D208: г | E208: г | F208: г | G208: ккал | H208: мг | I208: мг | J208: мкг рет.экв | K208: мкг | L208: мг | M208: мг | N208: мг | O208: мг | P208: мг | Q208: мг | R208: мг | S208: мкг | T208: мкг | U208: мкг
B209: Суббота, 2 неделя
B210: Буфет | C210: 11-18
A211: 54-21гн-2020 | B211: Какао с молоком | C211: 150 | D211: 3.5 | E211: 2.6 | F211: 9.4 | G211: 75.3 | H211: 0.03 | I211: 0.12 | J211: 12.94 | K211: 0 | L211: 0.51 | M211: 37.46 | N211: 165.25 | O211: 125.76 | P211: 25.74 | Q211: 97.71 | R211: 0.82 | S211: 8.78 | T211: 1.72 | U211: 28.69
A212: Пром. | B212: Сушка простая | C212: 10 | D212: 1.09 | E212: 0.13 | F212: 6.88 | G212: 33.1 | H212: 0.02 | I212: 0.01 | J212: 0 | K212: 0 | L212: 0 | M212: 46 | N212: 15 | O212: 3 | P212: 4 | Q212: 11 | R212: 0.3 | S212: 0 | T212: 0 | U212: 0
B213: Итого за буфет | C213: =SUM(C211:C212) -> 160 | D213: 5.7 | E213: 2.9 | F213: 23.2 | G213: 141.4 | H213: 0.08 | I213: 0.13 | J213: 12.94 | K213: 0 | L213: 0.51 | M213: 158.46 | N213: 202.25 | O213: 131.76 | P213: 34.94 | Q213: 121.91 | R213: 1.4 | S213: 8.78 | T213: 1.72 | U213: 28.69
B214: Итого за день | C214: =C213 -> 160 | D214: =D213 -> 5.7 | E214: =E213 -> 2.9 | F214: 23.2 | G214: 141.4 | H214: 0.08 | I214: 0.13 | J214: 12.94 | K214: 0 | L214: 0.51 | M214: 158.46 | N214: 202.25 | O214: 131.76 | P214: 34.94 | Q214: 121.91 | R214: 1.4 | S214: 8.78 | T214: 1.72 | U214: 28.69
... 11 more rows
